Workbook

Sheet 智学网学校名称
A1: 学段 | B1: 名称 | C1: CC_ID | D1: CC_代码 | E1: CC_名称 | F1: CC_全称
A2: 初中 | B2: 两江中学 | C2: =VLOOKUP($B2,Sheet3!$A:$I,2,FALSE) -> 1518 | D2: =VLOOKUP($B2,Sheet3!$A:$I,6,FALSE) -> 128 | E2: =VLOOKUP($B2,Sheet3!$A:$I,4,FALSE) -> 两江中学（初中） | F2: =VLOOKUP($B2,Sheet3!$A:$I,5,FALSE) -> 重庆市两江中学校（初中） | G2: ="{ """&B2&""", new(){ Id = "&C2&", Code = """&D2&""", Name = """&E2&""", FullName = """&F2&""" } }," -> { "两江中学", new(){ Id = 1518, Code = "128", Name = "两江中学（初中）", FullName = "重庆市两江中学校（初中）" } },
A3: 初中 | B3: 仁睦中学 | C3: =VLOOKUP($B3,Sheet3!$A:$I,2,FALSE) -> 1512 | D3: =VLOOKUP($B3,Sheet3!$A:$I,6,FALSE) -> 119 | E3: =VLOOKUP(B3,Sheet3!A:I,4,FALSE) -> 仁睦中学 | F3: =VLOOKUP($B3,Sheet3!$A:$I,5,FALSE) -> 重庆市渝北区仁睦初级中学校 | G3: ="{ """&B3&""", new(){ Id = "&C3&", Code = """&D3&""", Name = """&E3&""", FullName = """&F3&""" } }," -> { "仁睦中学", new(){ Id = 1512, Code = "119", Name = "仁睦中学", FullName = "重庆市渝北区仁睦初级中学校" } },
A4: 初中 | B4: 大湾中学 | C4: =VLOOKUP($B4,Sheet3!$A:$I,2,FALSE) -> 1519 | D4: =VLOOKUP($B4,Sheet3!$A:$I,6,FALSE) -> 129 | E4: =VLOOKUP(B4,Sheet3!A:I,4,FALSE) -> 大湾中学 | F4: =VLOOKUP($B4,Sheet3!$A:$I,5,FALSE) -> 重庆市渝北区大湾初级中学校 | G4: { "大湾中学", new(){ Id = 1519, Code = "129", Name = "大湾中学", FullName = "重庆市渝北区大湾初级中学校" } },
A5: 初中 | B5: 大盛中学 | C5: =VLOOKUP($B5,Sheet3!$A:$I,2,FALSE) -> 1526 | D5: =VLOOKUP($B5,Sheet3!$A:$I,6,FALSE) -> 152 | E5: =VLOOKUP(B5,Sheet3!A:I,4,FALSE) -> 大盛学校（初中） | F5: =VLOOKUP($B5,Sheet3!$A:$I,5,FALSE) -> 重庆市渝北区大盛学校（初中） | G5: { "大盛中学", new(){ Id = 1526, Code = "152", Name = "大盛学校（初中）", FullName = "重庆市渝北区大盛学校（初中）" } },
A6: 初中 | B6: 实验二中 | C6: =VLOOKUP($B6,Sheet3!$A:$I,2,FALSE) -> 1511 | D6: =VLOOKUP($B6,Sheet3!$A:$I,6,FALSE) -> 118 | E6: =VLOOKUP(B6,Sheet3!A:I,4,FALSE) -> 实验二中 | F6: =VLOOKUP($B6,Sheet3!$A:$I,5,FALSE) -> 重庆市渝北区第二实验中学校 | G6: { "实验二中", new(){ Id = 1511, Code = "118", Name = "实验二中", FullName = "重庆市渝北区第二实验中学校" } },
A7: 初中 | B7: 悦来中学 | C7: =VLOOKUP($B7,Sheet3!$A:$I,2,FALSE) -> 1510 | D7: =VLOOKUP($B7,Sheet3!$A:$I,6,FALSE) -> 117 | E7: =VLOOKUP(B7,Sheet3!A:I,4,FALSE) -> 悦来中学 | F7: =VLOOKUP($B7,Sheet3!$A:$I,5,FALSE) -> 重庆市渝北区悦来初级中学校 | G7: { "悦来中学", new(){ Id = 1510, Code = "117", Name = "悦来中学", FullName = "重庆市渝北区悦来初级中学校" } },
A8: 初中 | B8: 悦港中学初中 | C8: =VLOOKUP($B8,Sheet3!$A:$I,2,FALSE) -> 1527 | D8: =VLOOKUP($B8,Sheet3!$A:$I,6,FALSE) -> 155 | E8: =VLOOKUP(B8,Sheet3!A:I,4,FALSE) -> 悦港中学 | F8: =VLOOKUP($B8,Sheet3!$A:$I,5,FALSE) -> 重庆市渝北区悦港初级中学校 | G8: { "悦港中学初中", new(){ Id = 1527, Code = "155", Name = "悦港中学", FullName = "重庆市渝北区悦港初级中学校" } },
A9: 初中 | B9: 暨华中学高中 | C9: =VLOOKUP($B9,Sheet3!$A:$I,2,FALSE) -> 1515 | D9: =VLOOKUP($B9,Sheet3!$A:$I,6,FALSE) -> 124 | E9: =VLOOKUP(B9,Sheet3!A:I,4,FALSE) -> 暨华中学（初中） | F9: =VLOOKUP($B9,Sheet3!$A:$I,5,FALSE) -> 重庆市暨华中学校（初中） | G9: { "暨华中学高中", new(){ Id = 1515, Code = "124", Name = "暨华中学（初中）", FullName = "重庆市暨华中学校（初中）" } },
A10: 初中 | B10: 洛碛中学 | C10: =VLOOKUP($B10,Sheet3!$A:$I,2,FALSE) -> 1523 | D10: =VLOOKUP($B10,Sheet3!$A:$I,6,FALSE) -> 143 | E10: =VLOOKUP(B10,Sheet3!A:I,4,FALSE) -> 洛碛中学 | F10: =VLOOKUP($B10,Sheet3!$A:$I,5,FALSE) -> 重庆市渝北区洛碛初级中学校 | G10: { "洛碛中学", new(){ Id = 1523, Code = "143", Name = "洛碛中学", FullName = "重庆市渝北区洛碛初级中学校" } },
A11: 初中 | B11: 渝汉中学 | C11: =VLOOKUP($B11,Sheet3!$A:$I,2,FALSE) -> 1506 | D11: =VLOOKUP($B11,Sheet3!$A:$I,6,FALSE) -> 110 | E11: =VLOOKUP(B11,Sheet3!A:I,4,FALSE) -> 渝汉中学 | F11: =VLOOKUP($B11,Sheet3!$A:$I,5,FALSE) -> 重庆市渝北区渝汉初级中学校 | G11: { "渝汉中学", new(){ Id = 1506, Code = "110", Name = "渝汉中学", FullName = "重庆市渝北区渝汉初级中学校" } },
A12: 初中 | B12: 玉峰山中学 | C12: =VLOOKUP($B12,Sheet3!$A:$I,2,FALSE) -> 1520 | D12: =VLOOKUP($B12,Sheet3!$A:$I,6,FALSE) -> 134 | E12: =VLOOKUP(B12,Sheet3!A:I,4,FALSE) -> 玉峰山中学 | F12: =VLOOKUP($B12,Sheet3!$A:$I,5,FALSE) -> 重庆市渝北区玉峰山初级中学校 | G12: { "玉峰山中学", new(){ Id = 1520, Code = "134", Name = "玉峰山中学", FullName = "重庆市渝北区玉峰山初级中学校" } },
A13: 初中 | B13: 王家学校 | C13: =VLOOKUP($B13,Sheet3!$A:$I,2,FALSE) -> 1521 | D13: =VLOOKUP($B13,Sheet3!$A:$I,6,FALSE) -> 135 | E13: =VLOOKUP(B13,Sheet3!A:I,4,FALSE) -> 王家学校（初中） | F13: =VLOOKUP($B13,Sheet3!$A:$I,5,FALSE) -> 重庆市渝北区王家学校（初中） | G13: { "王家学校", new(){ Id = 1521, Code = "135", Name = "王家学校（初中）", FullName = "重庆市渝北区王家学校（初中）" } },
A14: 初中 | B14: 统景中学 | C14: =VLOOKUP($B14,Sheet3!$A:$I,2,FALSE) -> 1525 | D14: =VLOOKUP($B14,Sheet3!$A:$I,6,FALSE) -> 149 | E14: =VLOOKUP(B14,Sheet3!A:I,4,FALSE) -> 统景中学 | F14: =VLOOKUP($B14,Sheet3!$A:$I,5,FALSE) -> 重庆市渝北区统景初级中学校 | G14: { "统景中学", new(){ Id = 1525, Code = "149", Name = "统景中学", FullName = "重庆市渝北区统景初级中学校" } },
A15: 初中 | B15: 重庆市华蓥中学校 | C15: =VLOOKUP($B15,Sheet3!$A:$I,2,FALSE) -> 1503 | D15: =VLOOKUP($B15,Sheet3!$A:$I,6,FALSE) -> 106 | E15: =VLOOKUP(B15,Sheet3!A:I,4,FALSE) -> 华蓥中学（初中） | F15: =VLOOKUP($B15,Sheet3!$A:$I,5,FALSE) -> 重庆市华蓥中学校（初中） | G15: { "重庆市华蓥中学校", new(){ Id = 1503, Code = "106", Name = "华蓥中学（初中）", FullName = "重庆市华蓥中学校（初中）" } },
A16: 初中 | B16: 重庆市南华中学校 | C16: =VLOOKUP($B16,Sheet3!$A:$I,2,FALSE) -> 1516 | D16: =VLOOKUP($B16,Sheet3!$A:$I,6,FALSE) -> 125 | E16: =VLOOKUP(B16,Sheet3!A:I,4,FALSE) -> 南华中学（初中） | F16: =VLOOKUP($B16,Sheet3!$A:$I,5,FALSE) -> 重庆市南华中学校（初中） | G16: { "重庆市南华中学校", new(){ Id = 1516, Code = "125", Name = "南华中学（初中）", FullName = "重庆市南华中学校（初中）" } },
A17: 初中 | B17: 重庆市松树桥中学校 | C17: =VLOOKUP($B17,Sheet3!$A:$I,2,FALSE) -> 1514 | D17: =VLOOKUP($B17,Sheet3!$A:$I,6,FALSE) -> 123 | E17: =VLOOKUP(B17,Sheet3!A:I,4,FALSE) -> 松树桥中学（初中） | F17: =VLOOKUP($B17,Sheet3!$A:$I,5,FALSE) -> 重庆市松树桥中学校（初中） | G17: { "重庆市松树桥中学校", new(){ Id = 1514, Code = "123", Name = "松树桥中学（初中）", FullName = "重庆市松树桥中学校（初中）" } },
A18: 初中 | B18: 重庆市渝北中学校 | C18: =VLOOKUP($B18,Sheet3!$A:$I,2,FALSE) -> 1517 | D18: =VLOOKUP($B18,Sheet3!$A:$I,6,FALSE) -> 126 | E18: =VLOOKUP(B18,Sheet3!A:I,4,FALSE) -> 渝北中学（初中） | F18: =VLOOKUP($B18,Sheet3!$A:$I,5,FALSE) -> 重庆市渝北中学校（初中） | G18: { "重庆市渝北中学校", new(){ Id = 1517, Code = "126", Name = "渝北中学（初中）", FullName = "重庆市渝北中学校（初中）" } },
A19: 初中 | B19: 重庆市渝北区古路学校 | C19: =VLOOKUP($B19,Sheet3!$A:$I,2,FALSE) -> 1522 | D19: =VLOOKUP($B19,Sheet3!$A:$I,6,FALSE) -> 137 | E19: =VLOOKUP(B19,Sheet3!A:I,4,FALSE) -> 古路学校（初中） | F19: =VLOOKUP($B19,Sheet3!$A:$I,5,FALSE) -> 重庆市渝北区古路学校（初中） | G19: { "重庆市渝北区古路学校", new(){ Id = 1522, Code = "137", Name = "古路学校（初中）", FullName = "重庆市渝北区古路学校（初中）" } },
A20: 初中 | B20: 重庆市渝北区实验中学校 | C20: =VLOOKUP($B20,Sheet3!$A:$I,2,FALSE) -> 1504 | D20: =VLOOKUP($B20,Sheet3!$A:$I,6,FALSE) -> 108 | E20: =VLOOKUP(B20,Sheet3!A:I,4,FALSE) -> 实验中学 | F20: =VLOOKUP($B20,Sheet3!$A:$I,5,FALSE) -> 重庆市渝北区实验中学校 | G20: { "重庆市渝北区实验中学校", new(){ Id = 1504, Code = "108", Name = "实验中学", FullName = "重庆市渝北区实验中学校" } },
A21: 初中 | B21: 重庆市渝北区御临初级中学校 | C21: =VLOOKUP($B21,Sheet3!$A:$I,2,FALSE) -> 1524 | D21: =VLOOKUP($B21,Sheet3!$A:$I,6,FALSE) -> 148 | E21: =VLOOKUP(B21,Sheet3!A:I,4,FALSE) -> 御临中学 | F21: =VLOOKUP($B21,Sheet3!$A:$I,5,FALSE) -> 重庆市渝北区御临初级中学校 | G21: { "重庆市渝北区御临初级中学校", new(){ Id = 1524, Code = "148", Name = "御临中学", FullName = "重庆市渝北区御临初级中学校" } },
A22: 初中 | B22: 重庆市渝北区渝石初级中学校 | C22: =VLOOKUP($B22,Sheet3!$A:$I,2,FALSE) -> 1507 | D22: =VLOOKUP($B22,Sheet3!$A:$I,6,FALSE) -> 111 | E22: =VLOOKUP(B22,Sheet3!A:I,4,FALSE) -> 渝石中学 | F22: =VLOOKUP($B22,Sheet3!$A:$I,5,FALSE) -> 重庆市渝北区渝石初级中学校 | G22: { "重庆市渝北区渝石初级中学校", new(){ Id = 1507, Code = "111", Name = "渝石中学", FullName = "重庆市渝北区渝石初级中学校" } },
A23: 初中 | B23: 重庆市渝北区石鞋学校 | C23: =VLOOKUP($B23,Sheet3!$A:$I,2,FALSE) -> 1513 | D23: =VLOOKUP($B23,Sheet3!$A:$I,6,FALSE) -> 121 | E23: =VLOOKUP(B23,Sheet3!A:I,4,FALSE) -> 石鞋学校（初中） | F23: =VLOOKUP($B23,Sheet3!$A:$I,5,FALSE) -> 重庆市渝北区石鞋学校（初中） | G23: { "重庆市渝北区石鞋学校", new(){ Id = 1513, Code = "121", Name = "石鞋学校（初中）", FullName = "重庆市渝北区石鞋学校（初中）" } },
A24: 初中 | B24: 重庆市渝北区空港实验中学校 | C24: =VLOOKUP($B24,Sheet3!$A:$I,2,FALSE) -> 1532 | D24: =VLOOKUP($B24,Sheet3!$A:$I,6,FALSE) -> 176 | E24: =VLOOKUP(B24,Sheet3!A:I,4,FALSE) -> 空港实验中学 | F24: =VLOOKUP($B24,Sheet3!$A:$I,5,FALSE) -> 重庆市渝北区空港实验中学校 | G24: { "重庆市渝北区空港实验中学校", new(){ Id = 1532, Code = "176", Name = "空港实验中学", FullName = "重庆市渝北区空港实验中学校" } },
A25: 初中 | B25: 重庆市育仁中学校 | C25: =VLOOKUP($B25,Sheet3!$A:$I,2,FALSE) -> 1502 | D25: =VLOOKUP($B25,Sheet3!$A:$I,6,FALSE) -> 105 | E25: =VLOOKUP(B25,Sheet3!A:I,4,FALSE) -> 育仁中学（初中） | F25: =VLOOKUP($B25,Sheet3!$A:$I,5,FALSE) -> 重庆市育仁中学校（初中） | G25: { "重庆市育仁中学校", new(){ Id = 1502, Code = "105", Name = "育仁中学（初中）", FullName = "重庆市育仁中学校（初中）" } },
A26: 初中 | B26: 锦华学校初中 | C26: =VLOOKUP($B26,Sheet3!$A:$I,2,FALSE) -> 1505 | D26: =VLOOKUP($B26,Sheet3!$A:$I,6,FALSE) -> 109 | E26: =VLOOKUP(B26,Sheet3!A:I,4,FALSE) -> 锦华学校（初中） | F26: =VLOOKUP($B26,Sheet3!$A:$I,5,FALSE) -> 重庆市渝北区锦华学校（初中） | G26: { "锦华学校初中", new(){ Id = 1505, Code = "109", Name = "锦华学校（初中）", FullName = "重庆市渝北区锦华学校（初中）" } },
A27: 初中 | B27: 高嘴学校 | C27: =VLOOKUP($B27,Sheet3!$A:$I,2,FALSE) -> 1501 | D27: =VLOOKUP($B27,Sheet3!$A:$I,6,FALSE) -> 104 | E27: =VLOOKUP(B27,Sheet3!A:I,4,FALSE) -> 高嘴学校（初中） | F27: =VLOOKUP($B27,Sheet3!$A:$I,5,FALSE) -> 重庆市渝北区高嘴学校（初中） | G27: { "高嘴学校", new(){ Id = 1501, Code = "104", Name = "高嘴学校（初中）", FullName = "重庆市渝北区高嘴学校（初中）" } },
A28: 初中 | B28: 龙塔学校 | C28: =VLOOKUP($B28,Sheet3!$A:$I,2,FALSE) -> 1508 | D28: =VLOOKUP($B28,Sheet3!$A:$I,6,FALSE) -> 112 | E28: =VLOOKUP(B28,Sheet3!A:I,4,FALSE) -> 龙塔实验学校（初中） | F28: =VLOOKUP($B28,Sheet3!$A:$I,5,FALSE) -> 重庆市渝北区龙塔实验学校（初中） | G28: { "龙塔学校", new(){ Id = 1508, Code = "112", Name = "龙塔实验学校（初中）", FullName = "重庆市渝北区龙塔实验学校（初中）" } },
A33: 小学 | B33: 渝北区古路中心小学校 | C33: =VLOOKUP($B33,Sheet1!$A:$J,2,FALSE) -> 1034 | D33: =VLOOKUP($B33,Sheet1!$A:$J,7,FALSE) -> 037 | E33: =VLOOKUP($B33,Sheet1!$A:$J,4,FALSE) -> 古路学校（小学） | F33: =VLOOKUP($B33,Sheet1!$A:$J,5,FALSE) -> 重庆市渝北区古路学校（小学） | G33: ="{ """&B33&""", new(){ Id = "&C33&", Code = """&D33&""", Name = """&E33&""", FullName = """&F33&""" } }," -> { "渝北区古路中心小学校", new(){ Id = 1034, Code = "037", Name = "古路学校（小学）", FullName = "重庆市渝北区古路学校（小学）" } },
A34: 小学 | B34: 渝北区大盛中心小学校 | C34: =VLOOKUP($B34,Sheet1!$A:$J,2,FALSE) -> 1048 | D34: =VLOOKUP($B34,Sheet1!$A:$J,7,FALSE) -> 052 | E34: =VLOOKUP($B34,Sheet1!$A:$J,4,FALSE) -> 大盛学校（小学） | F34: =VLOOKUP($B34,Sheet1!$A:$J,5,FALSE) -> 重庆市渝北区大盛学校（小学） | G34: ="{ """&B34&""", new(){ Id = "&C34&", Code = """&D34&""", Name = """&E34&""", FullName = """&F34&""" } }," -> { "渝北区大盛中心小学校", new(){ Id = 1048, Code = "052", Name = "大盛学校（小学）", FullName = "重庆市渝北区大盛学校（小学）" } },
A35: 小学 | B35: 渝北区石鞋小学校 | C35: =VLOOKUP($B35,Sheet1!$A:$J,2,FALSE) -> 1020 | D35: =VLOOKUP($B35,Sheet1!$A:$J,7,FALSE) -> 021 | E35: =VLOOKUP($B35,Sheet1!$A:$J,4,FALSE) -> 石鞋学校（小学） | F35: =VLOOKUP($B35,Sheet1!$A:$J,5,FALSE) -> 重庆市渝北区石鞋学校（小学） | G35: { "渝北区石鞋小学校", new(){ Id = 1020, Code = "021", Name = "石鞋学校（小学）", FullName = "重庆市渝北区石鞋学校（小学）" } },
A36: 小学 | B36: 渝北区金港小学 | C36: =VLOOKUP($B36,Sheet1!$A:$J,2,FALSE) -> 1030 | D36: =VLOOKUP($B36,Sheet1!$A:$J,7,FALSE) -> 032 | E36: =VLOOKUP($B36,Sheet1!$A:$J,4,FALSE) -> 金港国际小学 | F36: =VLOOKUP($B36,Sheet1!$A:$J,5,FALSE) -> 重庆市渝北金港国际实验小学校 | G36: { "渝北区金港小学", new(){ Id = 1030, Code = "032", Name = "金港国际小学", FullName = "重庆市渝北金港国际实验小学校" } },
A37: 小学 | B37: 渝北实验小学校 | C37: =VLOOKUP($B37,Sheet1!$A:$J,2,FALSE) -> 1031 | D37: =VLOOKUP($B37,Sheet1!$A:$J,7,FALSE) -> 033 | E37: =VLOOKUP($B37,Sheet1!$A:$J,4,FALSE) -> 渝北实验小学 | F37: =VLOOKUP($B37,Sheet1!$A:$J,5,FALSE) -> 重庆市渝北实验小学校 | G37: { "渝北实验小学校", new(){ Id = 1031, Code = "033", Name = "渝北实验小学", FullName = "重庆市渝北实验小学校" } },
A38: 小学 | B38: 重庆市渝北区东原香山实验小学校 | C38: =VLOOKUP($B38,Sheet1!$A:$J,2,FALSE) -> 1002 | D38: =VLOOKUP($B38,Sheet1!$A:$J,7,FALSE) -> 002 | E38: =VLOOKUP($B38,Sheet1!$A:$J,4,FALSE) -> 东原香山实验小学 | F38: =VLOOKUP($B38,Sheet1!$A:$J,5,FALSE) -> 重庆市渝北东原香山实验小学校 | G38: { "重庆市渝北区东原香山实验小学校", new(){ Id = 1002, Code = "002", Name = "东原香山实验小学", FullName = "重庆市渝北东原香山实验小学校" } },
A39: 小学 | B39: 重庆市渝北区东和春天实验学校 | C39: =VLOOKUP($B39,Sheet1!$A:$J,2,FALSE) -> 1017 | D39: =VLOOKUP($B39,Sheet1!$A:$J,7,FALSE) -> 018 | E39: =VLOOKUP($B39,Sheet1!$A:$J,4,FALSE) -> 东和春天实验学校 | F39: =VLOOKUP($B39,Sheet1!$A:$J,5,FALSE) -> 重庆市渝北区东和春天实验学校 | G39: { "重庆市渝北区东和春天实验学校", new(){ Id = 1017, Code = "018", Name = "东和春天实验学校", FullName = "重庆市渝北区东和春天实验学校" } },
A40: 小学 | B40: 重庆市渝北区两江小学校 | C40: =VLOOKUP($B40,Sheet1!$A:$J,2,FALSE) -> 1028 | D40: =VLOOKUP($B40,Sheet1!$A:$J,7,FALSE) -> 030 | E40: =VLOOKUP($B40,Sheet1!$A:$J,4,FALSE) -> 两江小学 | F40: =VLOOKUP($B40,Sheet1!$A:$J,5,FALSE) -> 重庆市渝北区两江小学校 | G40: { "重庆市渝北区两江小学校", new(){ Id = 1028, Code = "030", Name = "两江小学", FullName = "重庆市渝北区两江小学校" } },
A41: 小学 | B41: 重庆市渝北区中央公园小学校 | C41: =VLOOKUP($B41,Sheet1!$A:$J,2,FALSE) -> 1041 | D41: =VLOOKUP($B41,Sheet1!$A:$J,7,FALSE) -> 044 | E41: =VLOOKUP($B41,Sheet1!$A:$J,4,FALSE) -> 中央公园小学 | F41: =VLOOKUP($B41,Sheet1!$A:$J,5,FALSE) -> 重庆市渝北区中央公园小学校 | G41: { "重庆市渝北区中央公园小学校", new(){ Id = 1041, Code = "044", Name = "中央公园小学", FullName = "重庆市渝北区中央公园小学校" } },
A42: 小学 | B42: 重庆市渝北区五星路小学校 | C42: =VLOOKUP($B42,Sheet1!$A:$J,2,FALSE) -> 1036 | D42: =VLOOKUP($B42,Sheet1!$A:$J,7,FALSE) -> 039 | E42: =VLOOKUP($B42,Sheet1!$A:$J,4,FALSE) -> 五星路小学 | F42: =VLOOKUP($B42,Sheet1!$A:$J,5,FALSE) -> 重庆市渝北区五星路小学校 | G42: { "重庆市渝北区五星路小学校", new(){ Id = 1036, Code = "039", Name = "五星路小学", FullName = "重庆市渝北区五星路小学校" } },
A43: 小学 | B43: 重庆市渝北区仁睦完全小学校 | C43: =VLOOKUP($B43,Sheet1!$A:$J,2,FALSE) -> 1023 | D43: =VLOOKUP($B43,Sheet1!$A:$J,7,FALSE) -> 025 | E43: =VLOOKUP($B43,Sheet1!$A:$J,4,FALSE) -> 仁睦完小 | F43: =VLOOKUP($B43,Sheet1!$A:$J,5,FALSE) -> 重庆市渝北区仁睦完全小学校 | G43: { "重庆市渝北区仁睦完全小学校", new(){ Id = 1023, Code = "025", Name = "仁睦完小", FullName = "重庆市渝北区仁睦完全小学校" } },
A44: 小学 | B44: 重庆市渝北区兴隆中心小学校 | C44: =VLOOKUP($B44,Sheet1!$A:$J,2,FALSE) -> 1061 | D44: =VLOOKUP($B44,Sheet1!$A:$J,7,FALSE) -> 069 | E44: =VLOOKUP($B44,Sheet1!$A:$J,4,FALSE) -> 兴隆小学 | F44: =VLOOKUP($B44,Sheet1!$A:$J,5,FALSE) -> 重庆市渝北区兴隆中心小学校 | G44: { "重庆市渝北区兴隆中心小学校", new(){ Id = 1061, Code = "069", Name = "兴隆小学", FullName = "重庆市渝北区兴隆中心小学校" } },
A45: 小学 | B45: 重庆市渝北区华秦小学校 | C45: =VLOOKUP($B45,Sheet1!$A:$J,2,FALSE) -> 1053 | D45: =VLOOKUP($B45,Sheet1!$A:$J,7,FALSE) -> 059 | E45: =VLOOKUP($B45,Sheet1!$A:$J,4,FALSE) -> 华秦小学 | F45: =VLOOKUP($B45,Sheet1!$A:$J,5,FALSE) -> 重庆市渝北区华秦小学校 | G45: { "重庆市渝北区华秦小学校", new(){ Id = 1053, Code = "059", Name = "华秦小学", FullName = "重庆市渝北区华秦小学校" } },
A46: 小学 | B46: 重庆市渝北区华蓥山学校 | C46: =VLOOKUP($B46,Sheet1!$A:$J,2,FALSE) -> 1054 | D46: =VLOOKUP($B46,Sheet1!$A:$J,7,FALSE) -> 060 | E46: =VLOOKUP($B46,Sheet1!$A:$J,4,FALSE) -> 华蓥山学校（小学） | F46: =VLOOKUP($B46,Sheet1!$A:$J,5,FALSE) -> 重庆市渝北区华蓥山学校（小学） | G46: { "重庆市渝北区华蓥山学校", new(){ Id = 1054, Code = "060", Name = "华蓥山学校（小学）", FullName = "重庆市渝北区华蓥山学校（小学）" } },
A47: 小学 | B47: 重庆市渝北区南方玫瑰城实验小学校 | C47: =VLOOKUP($B47,Sheet1!$A:$J,2,FALSE) -> 1006 | D47: =VLOOKUP($B47,Sheet1!$A:$J,7,FALSE) -> 006 | E47: =VLOOKUP($B47,Sheet1!$A:$J,4,FALSE) -> 南方玫瑰城实验小学 | F47: =VLOOKUP($B47,Sheet1!$A:$J,5,FALSE) -> 重庆市渝北区南方玫瑰城实验小学校 | G47: { "重庆市渝北区南方玫瑰城实验小学校", new(){ Id = 1006, Code = "006", Name = "南方玫瑰城实验小学", FullName = "重庆市渝北区南方玫瑰城实验小学校" } },
A48: 小学 | B48: 重庆市渝北区双湖小学校 | C48: =VLOOKUP($B48,Sheet1!$A:$J,2,FALSE) -> 1008 | D48: =VLOOKUP($B48,Sheet1!$A:$J,7,FALSE) -> 008 | E48: =VLOOKUP($B48,Sheet1!$A:$J,4,FALSE) -> 双湖小学 | F48: =VLOOKUP($B48,Sheet1!$A:$J,5,FALSE) -> 重庆市渝北区双湖小学校 | G48: { "重庆市渝北区双湖小学校", new(){ Id = 1008, Code = "008", Name = "双湖小学", FullName = "重庆市渝北区双湖小学校" } },
A49: 小学 | B49: 重庆市渝北区和合家园小学校 | C49: =VLOOKUP($B49,Sheet1!$A:$J,2,FALSE) -> 1046 | D49: =VLOOKUP($B49,Sheet1!$A:$J,7,FALSE) -> 050 | E49: =VLOOKUP($B49,Sheet1!$A:$J,4,FALSE) -> 和合家园小学 | F49: =VLOOKUP($B49,Sheet1!$A:$J,5,FALSE) -> 重庆市渝北区和合家园小学校 | G49: { "重庆市渝北区和合家园小学校", new(){ Id = 1046, Code = "050", Name = "和合家园小学", FullName = "重庆市渝北区和合家园小学校" } },
A50: 小学 | B50: 重庆市渝北区回兴小学校 | C50: =VLOOKUP($B50,Sheet1!$A:$J,2,FALSE) -> 1005 | D50: =VLOOKUP($B50,Sheet1!$A:$J,7,FALSE) -> 005 | E50: =VLOOKUP($B50,Sheet1!$A:$J,4,FALSE) -> 回兴小学 | F50: =VLOOKUP($B50,Sheet1!$A:$J,5,FALSE) -> 重庆市渝北区回兴中心小学校 | G50: { "重庆市渝北区回兴小学校", new(){ Id = 1005, Code = "005", Name = "回兴小学", FullName = "重庆市渝北区回兴中心小学校" } },
A51: 小学 | B51: 重庆市渝北区大湾镇明德小学 | C51: =VLOOKUP($B51,Sheet1!$A:$J,2,FALSE) -> 1055 | D51: =VLOOKUP($B51,Sheet1!$A:$J,7,FALSE) -> 062 | E51: =VLOOKUP($B51,Sheet1!$A:$J,4,FALSE) -> 大湾镇明德小学 | F51: =VLOOKUP($B51,Sheet1!$A:$J,5,FALSE) -> 重庆市渝北区大湾镇明德小学校 | G51: { "重庆市渝北区大湾镇明德小学", new(){ Id = 1055, Code = "062", Name = "大湾镇明德小学", FullName = "重庆市渝北区大湾镇明德小学校" } },
A52: 小学 | B52: 重庆市渝北区天一新城小学校 | C52: =VLOOKUP($B52,Sheet1!$A:$J,2,FALSE) -> 1022 | D52: =VLOOKUP($B52,Sheet1!$A:$J,7,FALSE) -> 023 | E52: =VLOOKUP($B52,Sheet1!$A:$J,4,FALSE) -> 天一新城小学 | F52: =VLOOKUP($B52,Sheet1!$A:$J,5,FALSE) -> 重庆市渝北区天一新城小学校 | G52: { "重庆市渝北区天一新城小学校", new(){ Id = 1022, Code = "023", Name = "天一新城小学", FullName = "重庆市渝北区天一新城小学校" } },
A53: 小学 | B53: 重庆市渝北区天堡寨小学校 | C53: =VLOOKUP($B53,Sheet1!$A:$J,2,FALSE) -> 1049 | D53: =VLOOKUP($B53,Sheet1!$A:$J,7,FALSE) -> 053 | E53: =VLOOKUP($B53,Sheet1!$A:$J,4,FALSE) -> 天堡寨小学 | F53: =VLOOKUP($B53,Sheet1!$A:$J,5,FALSE) -> 重庆市渝北区天堡寨小学校 | G53: { "重庆市渝北区天堡寨小学校", new(){ Id = 1049, Code = "053", Name = "天堡寨小学", FullName = "重庆市渝北区天堡寨小学校" } },
A54: 小学 | B54: 重庆市渝北区宝圣湖小学校 | C54: =VLOOKUP($B54,Sheet1!$A:$J,2,FALSE) -> 1001 | D54: =VLOOKUP($B54,Sheet1!$A:$J,7,FALSE) -> 001 | E54: =VLOOKUP($B54,Sheet1!$A:$J,4,FALSE) -> 宝圣湖小学 | F54: =VLOOKUP($B54,Sheet1!$A:$J,5,FALSE) -> 重庆市渝北区宝圣湖小学校 | G54: { "重庆市渝北区宝圣湖小学校", new(){ Id = 1001, Code = "001", Name = "宝圣湖小学", FullName = "重庆市渝北区宝圣湖小学校" } },
A55: 小学 | B55: 重庆市渝北区悦来中心小学校 | C55: =VLOOKUP($B55,Sheet1!$A:$J,2,FALSE) -> 1063 | D55: =VLOOKUP($B55,Sheet1!$A:$J,7,FALSE) -> 072 | E55: =VLOOKUP($B55,Sheet1!$A:$J,4,FALSE) -> 悦来小学 | F55: =VLOOKUP($B55,Sheet1!$A:$J,5,FALSE) -> 重庆市渝北区悦来中心小学校 | G55: { "重庆市渝北区悦来中心小学校", new(){ Id = 1063, Code = "072", Name = "悦来小学", FullName = "重庆市渝北区悦来中心小学校" } },
A56: 小学 | B56: 重庆市渝北区新牌坊小学校 | C56: =VLOOKUP($B56,Sheet1!$A:$J,2,FALSE) -> 1015 | D56: =VLOOKUP($B56,Sheet1!$A:$J,7,FALSE) -> 016 | E56: =VLOOKUP($B56,Sheet1!$A:$J,4,FALSE) -> 新牌坊小学 | F56: =VLOOKUP($B56,Sheet1!$A:$J,5,FALSE) -> 重庆市渝北区新牌坊小学校 | G56: { "重庆市渝北区新牌坊小学校", new(){ Id = 1015, Code = "016", Name = "新牌坊小学", FullName = "重庆市渝北区新牌坊小学校" } },
A57: 小学 | B57: 重庆市渝北区旭辉小学校 | C57: =VLOOKUP($B57,Sheet1!$A:$J,2,FALSE) -> 1010 | D57: =VLOOKUP($B57,Sheet1!$A:$J,7,FALSE) -> 010 | E57: =VLOOKUP($B57,Sheet1!$A:$J,4,FALSE) -> 旭辉小学 | F57: =VLOOKUP($B57,Sheet1!$A:$J,5,FALSE) -> 重庆市渝北区旭辉小学校 | G57: { "重庆市渝北区旭辉小学校", new(){ Id = 1010, Code = "010", Name = "旭辉小学", FullName = "重庆市渝北区旭辉小学校" } },
A58: 小学 | B58: 重庆市渝北区木耳中心小学校 | C58: =VLOOKUP($B58,Sheet1!$A:$J,2,FALSE) -> 1058 | D58: =VLOOKUP($B58,Sheet1!$A:$J,7,FALSE) -> 065 | E58: =VLOOKUP($B58,Sheet1!$A:$J,4,FALSE) -> 木耳小学 | F58: =VLOOKUP($B58,Sheet1!$A:$J,5,FALSE) -> 重庆市渝北区木耳中心小学校 | G58: { "重庆市渝北区木耳中心小学校", new(){ Id = 1058, Code = "065", Name = "木耳小学", FullName = "重庆市渝北区木耳中心小学校" } },
A59: 小学 | B59: 重庆市渝北区汉渝路小学校 | C59: =VLOOKUP($B59,Sheet1!$A:$J,2,FALSE) -> 1029 | D59: =VLOOKUP($B59,Sheet1!$A:$J,7,FALSE) -> 031 | E59: =VLOOKUP($B59,Sheet1!$A:$J,4,FALSE) -> 汉渝路小学 | F59: =VLOOKUP($B59,Sheet1!$A:$J,5,FALSE) -> 重庆市渝北区汉渝路小学校 | G59: { "重庆市渝北区汉渝路小学校", new(){ Id = 1029, Code = "031", Name = "汉渝路小学", FullName = "重庆市渝北区汉渝路小学校" } },
A60: 小学 | B60: 重庆市渝北区洛碛中心小学校 | C60: =VLOOKUP($B60,Sheet1!$A:$J,2,FALSE) -> 1056 | D60: =VLOOKUP($B60,Sheet1!$A:$J,7,FALSE) -> 063 | E60: =VLOOKUP($B60,Sheet1!$A:$J,4,FALSE) -> 洛碛小学 | F60: =VLOOKUP($B60,Sheet1!$A:$J,5,FALSE) -> 重庆市渝北区洛碛中心小学校 | G60: { "重庆市渝北区洛碛中心小学校", new(){ Id = 1056, Code = "063", Name = "洛碛小学", FullName = "重庆市渝北区洛碛中心小学校" } },
A61: 小学 | B61: 重庆市渝北区渝开学校 | C61: =VLOOKUP($B61,Sheet1!$A:$J,2,FALSE) -> 1021 | D61: =VLOOKUP($B61,Sheet1!$A:$J,7,FALSE) -> 022 | E61: =VLOOKUP($B61,Sheet1!$A:$J,4,FALSE) -> 渝开学校（小学） | F61: =VLOOKUP($B61,Sheet1!$A:$J,5,FALSE) -> 重庆市渝北区渝开学校（小学） | G61: { "重庆市渝北区渝开学校", new(){ Id = 1021, Code = "022", Name = "渝开学校（小学）", FullName = "重庆市渝北区渝开学校（小学）" } },
A62: 小学 | B62: 重庆市渝北区玉峰山小学校 | C62: =VLOOKUP($B62,Sheet1!$A:$J,2,FALSE) -> 1062 | D62: =VLOOKUP($B62,Sheet1!$A:$J,7,FALSE) -> 071 | E62: =VLOOKUP($B62,Sheet1!$A:$J,4,FALSE) -> 玉峰山小学 | F62: =VLOOKUP($B62,Sheet1!$A:$J,5,FALSE) -> 重庆市渝北区玉峰山中心小学校 | G62: { "重庆市渝北区玉峰山小学校", new(){ Id = 1062, Code = "071", Name = "玉峰山小学", FullName = "重庆市渝北区玉峰山中心小学校" } },
A63: 小学 | B63: 重庆市渝北区王家学校 | C63: =VLOOKUP($B63,Sheet1!$A:$J,2,FALSE) -> 1033 | D63: =VLOOKUP($B63,Sheet1!$A:$J,7,FALSE) -> 035 | E63: =VLOOKUP($B63,Sheet1!$A:$J,4,FALSE) -> 王家学校（小学） | F63: =VLOOKUP($B63,Sheet1!$A:$J,5,FALSE) -> 重庆市渝北区王家学校（小学） | G63: { "重庆市渝北区王家学校", new(){ Id = 1033, Code = "035", Name = "王家学校（小学）", FullName = "重庆市渝北区王家学校（小学）" } },
A64: 小学 | B64: 重庆市渝北区环雅小学校 | C64: =VLOOKUP($B64,Sheet1!$A:$J,2,FALSE) -> 1025 | D64: =VLOOKUP($B64,Sheet1!$A:$J,7,FALSE) -> 027 | E64: =VLOOKUP($B64,Sheet1!$A:$J,4,FALSE) -> 环雅小学 | F64: =VLOOKUP($B64,Sheet1!$A:$J,5,FALSE) -> 重庆市渝北区环雅小学校 | G64: { "重庆市渝北区环雅小学校", new(){ Id = 1025, Code = "027", Name = "环雅小学", FullName = "重庆市渝北区环雅小学校" } },
A65: 小学 | B65: 重庆市渝北区盛景天下小学校 | C65: =VLOOKUP($B65,Sheet1!$A:$J,2,FALSE) -> 1040 | D65: =VLOOKUP($B65,Sheet1!$A:$J,7,FALSE) -> 043 | E65: =VLOOKUP($B65,Sheet1!$A:$J,4,FALSE) -> 盛景天下小学 | F65: =VLOOKUP($B65,Sheet1!$A:$J,5,FALSE) -> 重庆市渝北区盛景天下小学校 | G65: { "重庆市渝北区盛景天下小学校", new(){ Id = 1040, Code = "043", Name = "盛景天下小学", FullName = "重庆市渝北区盛景天下小学校" } },
A66: 小学 | B66: 重庆市渝北区石船中心小学校 | C66: =VLOOKUP($B66,Sheet1!$A:$J,2,FALSE) -> 1059 | D66: =VLOOKUP($B66,Sheet1!$A:$J,7,FALSE) -> 066 | E66: =VLOOKUP($B66,Sheet1!$A:$J,4,FALSE) -> 石船小学 | F66: =VLOOKUP($B66,Sheet1!$A:$J,5,FALSE) -> 重庆市渝北区石船中心小学校 | G66: ="{ """&B66&""", new(){ Id = "&C66&", Code = """&D66&""", Name = """&E66&""", FullName = """&F66&""" } }," -> { "重庆市渝北区石船中心小学校", new(){ Id = 1059, Code = "066", Name = "石船小学", FullName = "重庆市渝北区石船中心小学校" } },
A67: 小学 | B67: 重庆市渝北区空港佳园小学校 | C67: =VLOOKUP($B67,Sheet1!$A:$J,2,FALSE) -> 1044 | D67: =VLOOKUP($B67,Sheet1!$A:$J,7,FALSE) -> 047 | E67: =VLOOKUP($B67,Sheet1!$A:$J,4,FALSE) -> 空港佳园小学 | F67: =VLOOKUP($B67,Sheet1!$A:$J,5,FALSE) -> 重庆市渝北区空港佳园小学校 | G67: { "重庆市渝北区空港佳园小学校", new(){ Id = 1044, Code = "047", Name = "空港佳园小学", FullName = "重庆市渝北区空港佳园小学校" } },
A68: 小学 | B68: 重庆市渝北区空港实验小学校 | C68: =VLOOKUP($B68,Sheet1!$A:$J,2,FALSE) -> 1027 | D68: =VLOOKUP($B68,Sheet1!$A:$J,7,FALSE) -> 029 | E68: =VLOOKUP($B68,Sheet1!$A:$J,4,FALSE) -> 空港实验小学 | F68: =VLOOKUP($B68,Sheet1!$A:$J,5,FALSE) -> 重庆市渝北区空港实验小学校 | G68: { "重庆市渝北区空港实验小学校", new(){ Id = 1027, Code = "029", Name = "空港实验小学", FullName = "重庆市渝北区空港实验小学校" } },
A69: 小学 | B69: 重庆市渝北区空港新城人和街小学校 | C69: =VLOOKUP($B69,Sheet1!$A:$J,2,FALSE) -> 1038 | D69: =VLOOKUP($B69,Sheet1!$A:$J,7,FALSE) -> 041 | E69: =VLOOKUP($B69,Sheet1!$A:$J,4,FALSE) -> 空港新城人和街小学 | F69: =VLOOKUP($B69,Sheet1!$A:$J,5,FALSE) -> 重庆市渝北区空港新城人和街小学校 | G69: { "重庆市渝北区空港新城人和街小学校", new(){ Id = 1038, Code = "041", Name = "空港新城人和街小学", FullName = "重庆市渝北区空港新城人和街小学校" } },
A70: 小学 | B70: 重庆市渝北区空港新城小学校 | C70: =VLOOKUP($B70,Sheet1!$A:$J,2,FALSE) -> 1039 | D70: =VLOOKUP($B70,Sheet1!$A:$J,7,FALSE) -> 042 | E70: =VLOOKUP($B70,Sheet1!$A:$J,4,FALSE) -> 空港新城小学 | F70: =VLOOKUP($B70,Sheet1!$A:$J,5,FALSE) -> 重庆市渝北区空港新城小学校 | G70: { "重庆市渝北区空港新城小学校", new(){ Id = 1039, Code = "042", Name = "空港新城小学", FullName = "重庆市渝北区空港新城小学校" } },
A71: 小学 | B71: 重庆市渝北区立人小学校 | C71: =VLOOKUP($B71,Sheet1!$A:$J,2,FALSE) -> 1057 | D71: =VLOOKUP($B71,Sheet1!$A:$J,7,FALSE) -> 064 | E71: =VLOOKUP($B71,Sheet1!$A:$J,4,FALSE) -> 立人小学 | F71: =VLOOKUP($B71,Sheet1!$A:$J,5,FALSE) -> 重庆市渝北区立人小学校 | G71: { "重庆市渝北区立人小学校", new(){ Id = 1057, Code = "064", Name = "立人小学", FullName = "重庆市渝北区立人小学校" } },
A72: 小学 | B72: 重庆市渝北区笃信实验学校 | C72: =VLOOKUP($B72,Sheet1!$A:$J,2,FALSE) -> 1032 | D72: =VLOOKUP($B72,Sheet1!$A:$J,7,FALSE) -> 034 | E72: =VLOOKUP($B72,Sheet1!$A:$J,4,FALSE) -> 笃信实验学校 | F72: =VLOOKUP($B72,Sheet1!$A:$J,5,FALSE) -> 重庆市渝北区笃信实验学校 | G72: { "重庆市渝北区笃信实验学校", new(){ Id = 1032, Code = "034", Name = "笃信实验学校", FullName = "重庆市渝北区笃信实验学校" } },
A73: 小学 | B73: 重庆市渝北区第三实验小学校 | C73: =VLOOKUP($B73,Sheet1!$A:$J,2,FALSE) -> 1007 | D73: =VLOOKUP($B73,Sheet1!$A:$J,7,FALSE) -> 007 | E73: =VLOOKUP($B73,Sheet1!$A:$J,4,FALSE) -> 实验三小 | F73: =VLOOKUP($B73,Sheet1!$A:$J,5,FALSE) -> 重庆市渝北区第三实验小学校 | G73: { "重庆市渝北区第三实验小学校", new(){ Id = 1007, Code = "007", Name = "实验三小", FullName = "重庆市渝北区第三实验小学校" } },
A74: 小学 | B74: 重庆市渝北区统景中心小学校 | C74: =VLOOKUP($B74,Sheet1!$A:$J,2,FALSE) -> 1060 | D74: =VLOOKUP($B74,Sheet1!$A:$J,7,FALSE) -> 068 | E74: =VLOOKUP($B74,Sheet1!$A:$J,4,FALSE) -> 统景小学 | F74: =VLOOKUP($B74,Sheet1!$A:$J,5,FALSE) -> 重庆市渝北区统景中心小学校 | G74: { "重庆市渝北区统景中心小学校", new(){ Id = 1060, Code = "068", Name = "统景小学", FullName = "重庆市渝北区统景中心小学校" } },
A75: 小学 | B75: 重庆市渝北区花园小学校 | C75: =VLOOKUP($B75,Sheet1!$A:$J,2,FALSE) -> 1018 | D75: =VLOOKUP($B75,Sheet1!$A:$J,7,FALSE) -> 019 | E75: =VLOOKUP($B75,Sheet1!$A:$J,4,FALSE) -> 花园小学 | F75: =VLOOKUP($B75,Sheet1!$A:$J,5,FALSE) -> 重庆市渝北区花园小学校 | G75: { "重庆市渝北区花园小学校", new(){ Id = 1018, Code = "019", Name = "花园小学", FullName = "重庆市渝北区花园小学校" } },
A76: 小学 | B76: 重庆市渝北区茨竹中心小学校 | C76: =VLOOKUP($B76,Sheet1!$A:$J,2,FALSE) -> 1052 | D76: =VLOOKUP($B76,Sheet1!$A:$J,7,FALSE) -> 058 | E76: =VLOOKUP($B76,Sheet1!$A:$J,4,FALSE) -> 茨竹小学 | F76: =VLOOKUP($B76,Sheet1!$A:$J,5,FALSE) -> 重庆市渝北区茨竹中心小学校 | G76: { "重庆市渝北区茨竹中心小学校", new(){ Id = 1052, Code = "058", Name = "茨竹小学", FullName = "重庆市渝北区茨竹中心小学校" } },
A77: 小学 | B77: 重庆市渝北区观月小学校 | C77: =VLOOKUP($B77,Sheet1!$A:$J,2,FALSE) -> 1026 | D77: =VLOOKUP($B77,Sheet1!$A:$J,7,FALSE) -> 028 | E77: =VLOOKUP($B77,Sheet1!$A:$J,4,FALSE) -> 观月小学 | F77: =VLOOKUP($B77,Sheet1!$A:$J,5,FALSE) -> 重庆市渝北区观月小学校 | G77: { "重庆市渝北区观月小学校", new(){ Id = 1026, Code = "028", Name = "观月小学", FullName = "重庆市渝北区观月小学校" } },
A78: 小学 | B78: 重庆市渝北区金鹏实验小学校 | C78: =VLOOKUP($B78,Sheet1!$A:$J,2,FALSE) -> 1003 | D78: =VLOOKUP($B78,Sheet1!$A:$J,7,FALSE) -> 003 | E78: =VLOOKUP($B78,Sheet1!$A:$J,4,FALSE) -> 金鹏小学 | F78: =VLOOKUP($B78,Sheet1!$A:$J,5,FALSE) -> 重庆市渝北区金鹏小学校 | G78: { "重庆市渝北区金鹏实验小学校", new(){ Id = 1003, Code = "003", Name = "金鹏小学", FullName = "重庆市渝北区金鹏小学校" } },
A79: 小学 | B79: 重庆市渝北区锦华学校 | C79: =VLOOKUP($B79,Sheet1!$A:$J,2,FALSE) -> 1009 | D79: =VLOOKUP($B79,Sheet1!$A:$J,7,FALSE) -> 009 | E79: =VLOOKUP($B79,Sheet1!$A:$J,4,FALSE) -> 锦华学校（小学） | F79: =VLOOKUP($B79,Sheet1!$A:$J,5,FALSE) -> 重庆市渝北区锦华学校（小学） | G79: { "重庆市渝北区锦华学校", new(){ Id = 1009, Code = "009", Name = "锦华学校（小学）", FullName = "重庆市渝北区锦华学校（小学）" } },
A80: 小学 | B80: 重庆市渝北区长安锦尚小学校 | C80: =VLOOKUP($B80,Sheet1!$A:$J,2,FALSE) -> 1024 | D80: =VLOOKUP($B80,Sheet1!$A:$J,7,FALSE) -> 026 | E80: =VLOOKUP($B80,Sheet1!$A:$J,4,FALSE) -> 长安锦尚小学 | F80: =VLOOKUP($B80,Sheet1!$A:$J,5,FALSE) -> 重庆市渝北区长安锦尚小学校 | G80: { "重庆市渝北区长安锦尚小学校", new(){ Id = 1024, Code = "026", Name = "长安锦尚小学", FullName = "重庆市渝北区长安锦尚小学校" } },
A81: 小学 | B81: 重庆市渝北区长安锦绣实验小学校 | C81: =VLOOKUP($B81,Sheet1!$A:$J,2,FALSE) -> 1016 | D81: =VLOOKUP($B81,Sheet1!$A:$J,7,FALSE) -> 017 | E81: =VLOOKUP($B81,Sheet1!$A:$J,4,FALSE) -> 长安锦绣实验小学 | F81: =VLOOKUP($B81,Sheet1!$A:$J,5,FALSE) -> 重庆市渝北区长安锦绣实验小学校 | G81: { "重庆市渝北区长安锦绣实验小学校", new(){ Id = 1016, Code = "017", Name = "长安锦绣实验小学", FullName = "重庆市渝北区长安锦绣实验小学校" } },
A82: 小学 | B82: 重庆市渝北区高嘴学校 | C82: =VLOOKUP($B82,Sheet1!$A:$J,2,FALSE) -> 1004 | D82: =VLOOKUP($B82,Sheet1!$A:$J,7,FALSE) -> 004 | E82: =VLOOKUP($B82,Sheet1!$A:$J,4,FALSE) -> 高嘴学校（小学） | F82: =VLOOKUP($B82,Sheet1!$A:$J,5,FALSE) -> 重庆市渝北区高嘴学校（小学） | G82: { "重庆市渝北区高嘴学校", new(){ Id = 1004, Code = "004", Name = "高嘴学校（小学）", FullName = "重庆市渝北区高嘴学校（小学）" } },
A83: 小学 | B83: 重庆市渝北区鹿山小学校 | C83: =VLOOKUP($B83,Sheet1!$A:$J,2,FALSE) -> 1035 | D83: =VLOOKUP($B83,Sheet1!$A:$J,7,FALSE) -> 038 | E83: =VLOOKUP($B83,Sheet1!$A:$J,4,FALSE) -> 鹿山小学 | F83: =VLOOKUP($B83,Sheet1!$A:$J,5,FALSE) -> 重庆市渝北区鹿山小学校 | G83: { "重庆市渝北区鹿山小学校", new(){ Id = 1035, Code = "038", Name = "鹿山小学", FullName = "重庆市渝北区鹿山小学校" } },
A84: 小学 | B84: 重庆市渝北区龙兴中心小学校 | C84: =VLOOKUP($B84,Sheet1!$A:$J,2,FALSE) -> 1047 | D84: =VLOOKUP($B84,Sheet1!$A:$J,7,FALSE) -> 051 | E84: =VLOOKUP($B84,Sheet1!$A:$J,4,FALSE) -> 龙兴小学 | F84: =VLOOKUP($B84,Sheet1!$A:$J,5,FALSE) -> 重庆市渝北区龙兴中心小学校 | G84: { "重庆市渝北区龙兴中心小学校", new(){ Id = 1047, Code = "051", Name = "龙兴小学", FullName = "重庆市渝北区龙兴中心小学校" } },
A85: 小学 | B85: 重庆市渝北区龙塔实验学校 | C85: =VLOOKUP($B85,Sheet1!$A:$J,2,FALSE) -> 1011 | D85: =VLOOKUP($B85,Sheet1!$A:$J,7,FALSE) -> 012 | E85: =VLOOKUP($B85,Sheet1!$A:$J,4,FALSE) -> 龙塔实验学校（小学） | F85: =VLOOKUP($B85,Sheet1!$A:$J,5,FALSE) -> 重庆市渝北区龙塔实验学校（小学） | G85: { "重庆市渝北区龙塔实验学校", new(){ Id = 1011, Code = "012", Name = "龙塔实验学校（小学）", FullName = "重庆市渝北区龙塔实验学校（小学）" } },
A86: 小学 | B86: 重庆市渝北区龙山小学校 | C86: =VLOOKUP($B86,Sheet1!$A:$J,2,FALSE) -> 1019 | D86: =VLOOKUP($B86,Sheet1!$A:$J,7,FALSE) -> 020 | E86: =VLOOKUP($B86,Sheet1!$A:$J,4,FALSE) -> 龙山小学 | F86: =VLOOKUP($B86,Sheet1!$A:$J,5,FALSE) -> 重庆市渝北区龙山小学校 | G86: { "重庆市渝北区龙山小学校", new(){ Id = 1019, Code = "020", Name = "龙山小学", FullName = "重庆市渝北区龙山小学校" } },
A87: 小学 | B87: 重庆市渝北区龙溪小学校 | C87: =VLOOKUP($B87,Sheet1!$A:$J,2,FALSE) -> 1014 | D87: =VLOOKUP($B87,Sheet1!$A:$J,7,FALSE) -> 015 | E87: =VLOOKUP($B87,Sheet1!$A:$J,4,FALSE) -> 龙溪小学 | F87: =VLOOKUP($B87,Sheet1!$A:$J,5,FALSE) -> 重庆市渝北区龙溪小学校 | G87: { "重庆市渝北区龙溪小学校", new(){ Id = 1014, Code = "015", Name = "龙溪小学", FullName = "重庆市渝北区龙溪小学校" } },
A88: 小学 | B88: 重庆市渝北区同茂小学校 | C88: =VLOOKUP($B88,Sheet1!$A:$J,2,FALSE) -> 1045 | D88: =VLOOKUP($B88,Sheet1!$A:$J,7,FALSE) -> 048 | E88: =VLOOKUP($B88,Sheet1!$A:$J,4,FALSE) -> 同茂小学 | F88: =VLOOKUP($B88,Sheet1!$A:$J,5,FALSE) -> 重庆市渝北区同茂小学校 | G88: ="{ """&B88&""", new(){ Id = "&C88&", Code = """&D88&""", Name = """&E88&""", FullName = """&F88&""" } }," -> { "重庆市渝北区同茂小学校", new(){ Id = 1045, Code = "048", Name = "同茂小学", FullName = "重庆市渝北区同茂小学校" } },
A89: 小学 | B89: 重庆市渝北区龙兴实验小学校 | C89: =VLOOKUP($B89,Sheet1!$A:$J,2,FALSE) -> 1051 | D89: =VLOOKUP($B89,Sheet1!$A:$J,7,FALSE) -> 055 | E89: =VLOOKUP($B89,Sheet1!$A:$J,4,FALSE) -> 龙兴实验小学 | F89: =VLOOKUP($B89,Sheet1!$A:$J,5,FALSE) -> 重庆市渝北区龙兴实验小学校 | G89: ="{ """&B89&""", new(){ Id = "&C89&", Code = """&D89&""", Name = """&E89&""", FullName = """&F89&""" } }," -> { "重庆市渝北区龙兴实验小学校", new(){ Id = 1051, Code = "055", Name = "龙兴实验小学", FullName = "重庆市渝北区龙兴实验小学校" } },
A93: 高中 | B93: 华蓥中学高中 | C93: =VLOOKUP($B93,Sheet2!$A:$J,2,FALSE) -> 1806 | D93: =VLOOKUP($B93,Sheet2!$A:$J,7,FALSE) -> 6 | E93: =VLOOKUP($B93,Sheet2!$A:$J,4,FALSE) -> 华蓥中学（高中） | F93: =VLOOKUP($B93,Sheet2!$A:$J,5,FALSE) -> 重庆市华蓥中学校（高中） | G93: ="{ """&B93&""", new(){ Id = "&C93&", Code = """&D93&""", Name = """&E93&""", FullName = """&F93&""" } }," -> { "华蓥中学高中", new(){ Id = 1806, Code = "6", Name = "华蓥中学（高中）", FullName = "重庆市华蓥中学校（高中）" } },
A94: 高中 | B94: 暨华中学高中 | C94: =VLOOKUP($B94,Sheet2!$A:$J,2,FALSE) -> 1802 | D94: =VLOOKUP($B94,Sheet2!$A:$J,7,FALSE) -> 2 | E94: =VLOOKUP($B94,Sheet2!$A:$J,4,FALSE) -> 暨华中学（高中） | F94: =VLOOKUP($B94,Sheet2!$A:$J,5,FALSE) -> 重庆市暨华中学校（高中） | G94: ="{ """&B94&""", new(){ Id = "&C94&", Code = """&D94&""", Name = """&E94&""", FullName = """&F94&""" } }," -> { "暨华中学高中", new(){ Id = 1802, Code = "2", Name = "暨华中学（高中）", FullName = "重庆市暨华中学校（高中）" } },
A95: 高中 | B95: 两江中学高中 | C95: =VLOOKUP($B95,Sheet2!$A:$J,2,FALSE) -> 1805 | D95: =VLOOKUP($B95,Sheet2!$A:$J,7,FALSE) -> 5 | E95: =VLOOKUP($B95,Sheet2!$A:$J,4,FALSE) -> 两江中学（高中） | F95: =VLOOKUP($B95,Sheet2!$A:$J,5,FALSE) -> 重庆市两江中学校（高中） | G95: ="{ """&B95&""", new(){ Id = "&C95&", Code = """&D95&""", Name = """&E95&""", FullName = """&F95&""" } }," -> { "两江中学高中", new(){ Id = 1805, Code = "5", Name = "两江中学（高中）", FullName = "重庆市两江中学校（高中）" } },
A96: 高中 | B96: 松树桥中学高中 | C96: =VLOOKUP($B96,Sheet2!$A:$J,2,FALSE) -> 1803 | D96: =VLOOKUP($B96,Sheet2!$A:$J,7,FALSE) -> 3 | E96: =VLOOKUP($B96,Sheet2!$A:$J,4,FALSE) -> 松树桥中学（高中） | F96: =VLOOKUP($B96,Sheet2!$A:$J,5,FALSE) -> 重庆市松树桥中学校（高中） | G96: ="{ """&B96&""", new(){ Id = "&C96&", Code = """&D96&""", Name = """&E96&""", FullName = """&F96&""" } }," -> { "松树桥中学高中", new(){ Id = 1803, Code = "3", Name = "松树桥中学（高中）", FullName = "重庆市松树桥中学校（高中）" } },
A97: 高中 | B97: 育仁中学高中 | C97: =VLOOKUP($B97,Sheet2!$A:$J,2,FALSE) -> 1807 | D97: =VLOOKUP($B97,Sheet2!$A:$J,7,FALSE) -> 7 | E97: =VLOOKUP($B97,Sheet2!$A:$J,4,FALSE) -> 育仁中学（高中） | F97: =VLOOKUP($B97,Sheet2!$A:$J,5,FALSE) -> 重庆市育仁中学校（高中） | G97: ="{ """&B97&""", new(){ Id = "&C97&", Code = """&D97&""", Name = """&E97&""", FullName = """&F97&""" } }," -> { "育仁中学高中", new(){ Id = 1807, Code = "7", Name = "育仁中学（高中）", FullName = "重庆市育仁中学校（高中）" } },
A98: 高中 | B98: 重庆市南华中学 | C98: =VLOOKUP($B98,Sheet2!$A:$J,2,FALSE) -> 1804 | D98: =VLOOKUP($B98,Sheet2!$A:$J,7,FALSE) -> 4 | E98: =VLOOKUP($B98,Sheet2!$A:$J,4,FALSE) -> 南华中学（高中） | F98: =VLOOKUP($B98,Sheet2!$A:$J,5,FALSE) -> 重庆市南华中学校（高中） | G98: ="{ """&B98&""", new(){ Id = "&C98&", Code = """&D98&""", Name = """&E98&""", FullName = """&F98&""" } }," -> { "重庆市南华中学", new(){ Id = 1804, Code = "4", Name = "南华中学（高中）", FullName = "重庆市南华中学校（高中）" } },

Sheet 区测系统学校名称
A1: id | C1: name | D1: full_name | E1: short_name | F1: code | G1: unique_code | H1: tqes_id | I1: tqes_code
A2: 1001 | B2: 小学 | C2: 宝圣湖小学 | D2: 重庆市渝北区宝圣湖小学校 | E2: 宝圣湖小学 | F2: 001 | G2: X001 | H2: 16 | I2: X016
A3: 1002 | B3: 小学 | C3: 东原香山实验小学 | D3: 重庆市渝北东原香山实验小学校 | E3: 东原小学 | F3: 002 | G3: X002 | H3: 112 | I3: X028
A4: 1003 | B4: 小学 | C4: 金鹏小学 | D4: 重庆市渝北区金鹏小学校 | E4: 金鹏小学 | F4: 003 | G4: X003 | H4: 110 | I4: X026
A5: 1004 | B5: 小学 | C5: 高嘴学校（小学） | D5: 重庆市渝北区高嘴学校（小学） | E5: 高嘴小学 | F5: 004 | G5: X004 | H5: 56 | I5: X130
A6: 1005 | B6: 小学 | C6: 回兴小学 | D6: 重庆市渝北区回兴中心小学校 | E6: 回兴小学 | F6: 005 | G6: X005 | H6: 15 | I6: X015
A7: 1006 | B7: 小学 | C7: 南方玫瑰城实验小学 | D7: 重庆市渝北区南方玫瑰城实验小学校 | E7: 玫瑰小学 | F7: 006 | G7: X006 | H7: 23 | I7: X023
A8: 1007 | B8: 小学 | C8: 实验三小 | D8: 重庆市渝北区第三实验小学校 | E8: 实验三小 | F8: 007 | G8: X007 | H8: 8 | I8: X008
A9: 1008 | B9: 小学 | C9: 双湖小学 | D9: 重庆市渝北区双湖小学校 | E9: 双湖小学 | F9: 008 | G9: X008 | H9: 10 | I9: X010
A10: 1009 | B10: 小学 | C10: 锦华学校（小学） | D10: 重庆市渝北区锦华学校（小学） | E10: 锦华学校 | F10: 009 | G10: X009 | H10: 119 | I10: X036
A11: 1010 | B11: 小学 | C11: 旭辉小学 | D11: 重庆市渝北区旭辉小学校 | E11: 旭辉小学 | F11: 010 | G11: X010 | H11: 118 | I11: X034
A12: 1011 | B12: 小学 | C12: 龙塔实验学校（小学） | D12: 重庆市渝北区龙塔实验学校（小学） | E12: 龙塔实验 | F12: 012 | G12: X012 | H12: 13 | I12: X013
A13: 1012 | B13: 小学 | C13: 龙头寺小学 | D13: 重庆市渝北区龙头寺小学校 | E13: 龙头寺小学 | F13: 013 | G13: X013 | H13: 129 | I13: X149
A14: 1013 | B14: 小学 | C14: 鲁能巴蜀小学 | D14: 重庆市渝北区鲁能巴蜀小学校 | E14: 鲁能巴蜀小学 | F14: 014 | G14: X014 | H14: 137 | I14: X157
A15: 1014 | B15: 小学 | C15: 龙溪小学 | D15: 重庆市渝北区龙溪小学校 | E15: 龙溪小学 | F15: 015 | G15: X015 | H15: 5 | I15: X005
A16: 1015 | B16: 小学 | C16: 新牌坊小学 | D16: 重庆市渝北区新牌坊小学校 | E16: 牌坊小学 | F16: 016 | G16: X016 | H16: 9 | I16: X009
A17: 1016 | B17: 小学 | C17: 长安锦绣实验小学 | D17: 重庆市渝北区长安锦绣实验小学校 | E17: 长安锦绣 | F17: 017 | G17: X017 | H17: 24 | I17: X024
A18: 1017 | B18: 小学 | C18: 东和春天实验学校 | D18: 重庆市渝北区东和春天实验学校 | E18: 东和春天 | F18: 018 | G18: X018 | H18: 7 | I18: X007
A19: 1018 | B19: 小学 | C19: 花园小学 | D19: 重庆市渝北区花园小学校 | E19: 花园小学 | F19: 019 | G19: X019 | H19: 12 | I19: X012
A20: 1019 | B20: 小学 | C20: 龙山小学 | D20: 重庆市渝北区龙山小学校 | E20: 龙山小学 | F20: 020 | G20: X020 | H20: 25 | I20: X025
A21: 1020 | B21: 小学 | C21: 石鞋学校（小学） | D21: 重庆市渝北区石鞋学校（小学） | E21: 石鞋小学 | F21: 021 | G21: X021 | H21: 41 | I21: X115
A22: 1021 | B22: 小学 | C22: 渝开学校（小学） | D22: 重庆市渝北区渝开学校（小学） | E22: 渝开学校 | F22: 022 | G22: X022 | H22: 17 | I22: X017
A23: 1022 | B23: 小学 | C23: 天一新城小学 | D23: 重庆市渝北区天一新城小学校 | E23: 天一小学 | F23: 023 | G23: X023 | H23: 18 | I23: X018
A24: 1023 | B24: 小学 | C24: 仁睦完小 | D24: 重庆市渝北区仁睦完全小学校 | E24: 仁睦完小 | F24: 025 | G24: X025 | H24: 22 | I24: X022
A25: 1024 | B25: 小学 | C25: 长安锦尚小学 | D25: 重庆市渝北区长安锦尚小学校 | E25: 长安锦尚 | F25: 026 | G25: X026 | H25: 124 | I25: X035
A26: 1025 | B26: 小学 | C26: 环雅小学 | D26: 重庆市渝北区环雅小学校 | E26: 环雅小学 | F26: 027 | G26: X027 | H26: 125 | I26: X146
A27: 1026 | B27: 小学 | C27: 观月小学 | D27: 重庆市渝北区观月小学校 | E27: 观月小学 | F27: 028 | G27: X028 | H27: 122 | I27: X145
A28: 1027 | B28: 小学 | C28: 空港实验小学 | D28: 重庆市渝北区空港实验小学校 | E28: 空港小学 | F28: 029 | G28: X029 | H28: 2 | I28: X002
A29: 1028 | B29: 小学 | C29: 两江小学 | D29: 重庆市渝北区两江小学校 | E29: 两江小学 | F29: 030 | G29: X030 | H29: 111 | I29: X027
A30: 1029 | B30: 小学 | C30: 汉渝路小学 | D30: 重庆市渝北区汉渝路小学校 | E30: 汉渝小学 | F30: 031 | G30: X031 | H30: 3 | I30: X003
A31: 1030 | B31: 小学 | C31: 金港国际小学 | D31: 重庆市渝北金港国际实验小学校 | E31: 金港小学 | F31: 032 | G31: X032 | H31: 6 | I31: X006
A32: 1031 | B32: 小学 | C32: 渝北实验小学 | D32: 重庆市渝北实验小学校 | E32: 实验小学 | F32: 033 | G32: X033 | H32: 1 | I32: X001
A33: 1032 | B33: 小学 | C33: 笃信实验学校 | D33: 重庆市渝北区笃信实验学校 | E33: 笃信学校 | F33: 034 | G33: X034 | H33: 20 | I33: X020
A34: 1033 | B34: 小学 | C34: 王家学校（小学） | D34: 重庆市渝北区王家学校（小学） | E34: 王家学校（小学） | F34: 035 | G34: X035 | H34: 26 | I34: X029
A35: 1034 | B35: 小学 | C35: 古路学校（小学） | D35: 重庆市渝北区古路学校（小学） | E35: 古路小学 | F35: 037 | G35: X037 | H35: 38 | I35: X112
A36: 1035 | B36: 小学 | C36: 鹿山小学 | D36: 重庆市渝北区鹿山小学校 | E36: 鹿山小学 | F36: 038 | G36: X038 | H36: 11 | I36: X011
A37: 1036 | B37: 小学 | C37: 五星路小学 | D37: 重庆市渝北区五星路小学校 | E37: 五星小学 | F37: 039 | G37: X039 | H37: 4 | I37: X004
A38: 1037 | B38: 小学 | C38: 渝北巴蜀小学 | D38: 重庆市渝北巴蜀小学 | E38: 巴蜀 | F38: 040 | G38: X040 | H38: 114 | I38: X030
A39: 1038 | B39: 小学 | C39: 空港新城人和街小学 | D39: 重庆市渝北区空港新城人和街小学 | E39: 空港人和街 | F39: 041 | G39: X041 | H39: 116 | I39: X032
A40: 1039 | B40: 小学 | C40: 空港新城小学 | D40: 重庆市渝北区空港新城小学校 | E40: 空港新城 | F40: 042 | G40: X042 | H40: 21 | I40: X021
A41: 1040 | B41: 小学 | C41: 盛景天下小学 | D41: 重庆市渝北区盛景天下小学 | E41: 盛景小学 | F41: 043 | G41: X043 | H41: 115 | I41: X031
A42: 1041 | B42: 小学 | C42: 中央公园小学 | D42: 重庆市渝北区中央公园小学校 | E42: 中央公园小学 | F42: 044 | G42: X044 | H42: 117 | I42: X033
A43: 1042 | B43: 小学 | C43: 腾芳小学 | D43: 重庆市渝北区腾芳小学校 | E43: 腾芳小学 | F43: 045 | G43: X045 | H43: 126 | I43: X147
A44: 1043 | B44: 小学 | C44: 数据谷小学 | D44: 重庆市渝北区数据谷小学 | E44: 数据谷小学 | F44: 046 | G44: X046 | H44: 127 | I44: X148
A45: 1044 | B45: 小学 | C45: 空港佳园小学 | D45: 重庆市渝北区空港佳园小学校 | E45: 空港佳园小学 | F45: 047 | G45: X047 | H45: 123 | I45: X037
A46: 1045 | B46: 小学 | C46: 同茂小学 | D46: 重庆市渝北区同茂小学校 | E46: 同茂小学 | F46: 048 | G46: X048 | H46: 130 | I46: X150
A47: 1046 | B47: 小学 | C47: 和合家园小学 | D47: 重庆市渝北区和合家园小学校 | E47: 和合小学 | F47: 050 | G47: X050 | H47: 43 | I47: X117
A48: 1047 | B48: 小学 | C48: 龙兴小学 | D48: 重庆市渝北区龙兴中心小学校 | E48: 龙兴小学 | F48: 051 | G48: X051 | H48: 35 | I48: X109
A49: 1048 | B49: 小学 | C49: 大盛学校（小学） | D49: 重庆市渝北区大盛学校（小学） | E49: 大盛小学 | F49: 052 | G49: X052 | H49: 36 | I49: X110
A50: 1049 | B50: 小学 | C50: 天堡寨小学 | D50: 重庆市渝北区天堡寨小学校 | E50: 天堡小学 | F50: 053 | G50: X053 | H50: 57 | I50: X132
A51: 1050 | B51: 小学 | C51: 两江人民小学 | D51: 重庆市渝北区两江人民小学 | E51: 两江人民小学 | F51: 054 | G51: X054 | H51: 131 | I51: X151
A52: 1051 | B52: 小学 | C52: 龙兴实验小学 | D52: 重庆市渝北区龙兴实验小学 | E52: 龙兴实验小学 | F52: 055 | G52: X055 | H52: 132 | I52: X152
A53: 1052 | B53: 小学 | C53: 茨竹小学 | D53: 重庆市渝北区茨竹中心小学校 | E53: 茨竹小学 | F53: 058 | G53: X058 | H53: 28 | I53: X102
A54: 1053 | B54: 小学 | C54: 华秦小学 | D54: 重庆市渝北区华秦小学校 | E54: 华秦小学 | F54: 059 | G54: X059 | H54: 44 | I54: X118
A55: 1054 | B55: 小学 | C55: 华蓥山学校（小学） | D55: 重庆市渝北区华蓥山学校（小学） | E55: 华山学校 | F55: 060 | G55: X060 | H55: 30 | I55: X104
A56: 1055 | B56: 小学 | C56: 大湾镇明德小学 | D56: 重庆市渝北区大湾镇明德小学校 | E56: 大湾小学 | F56: 062 | G56: X062 | H56: 37 | I56: X111
A57: 1056 | B57: 小学 | C57: 洛碛小学 | D57: 重庆市渝北区洛碛中心小学校 | E57: 洛碛小学 | F57: 063 | G57: X063 | H57: 29 | I57: X103
A58: 1057 | B58: 小学 | C58: 立人小学 | D58: 重庆市渝北区立人小学校 | E58: 立人小学 | F58: 064 | G58: X064 | H58: 19 | I58: X019
A59: 1058 | B59: 小学 | C59: 木耳小学 | D59: 重庆市渝北区木耳中心小学校 | E59: 木耳小学 | F59: 065 | G59: X065 | H59: 31 | I59: X105
A60: 1059 | B60: 小学 | C60: 石船小学 | D60: 重庆市渝北区石船中心小学校 | E60: 石船小学 | F60: 066 | G60: X066 | H60: 33 | I60: X107
A61: 1060 | B61: 小学 | C61: 统景小学 | D61: 重庆市渝北区统景中心小学校 | E61: 统景小学 | F61: 068 | G61: X068 | H61: 34 | I61: X108
A62: 1061 | B62: 小学 | C62: 兴隆小学 | D62: 重庆市渝北区兴隆中心小学校 | E62: 兴隆小学 | F62: 069 | G62: X069 | H62: 27 | I62: X101
A63: 1062 | B63: 小学 | C63: 玉峰山小学 | D63: 重庆市渝北区玉峰山中心小学校 | E63: 玉峰小学 | F63: 071 | G63: X071 | H63: 32 | I63: X106
A64: 1063 | B64: 小学 | C64: 悦来小学 | D64: 重庆市渝北区悦来中心小学校 | E64: 悦来小学 | F64: 072 | G64: X072 | H64: 14 | I64: X014
A65: 1064 | B65: 小学 | C65: 首地人和街小学 | D65: 重庆市渝北区首地人和街小学校 | E65: 首地人和街小学 | F65: 074 | G65: X074 | H65: 133 | I65: X153
A66: 1065 | B66: 小学 | C66: 悦城小学 | D66: 重庆市渝北区悦城小学校 | E66: 悦城小学 | F66: 078 | G66: X078 | H66: 134 | I66: X154
A67: 1066 | B67: 小学 | C67: 金石小学 | D67: 重庆市渝北区金石小学校 | E67: 金石小学 | F67: 092 | G67: X092 | H67: 135 | I67: X155
A68: 1067 | B68: 小学 | C68: 举人坝小学 | D68: 重庆市渝北区举人坝小学校 | E68: 举人坝小学 | F68: 093 | G68: X093 | H68: 136 | I68: X156
A69: 1068 | B69: 小学 | C69: 巴蜀常春藤（小学） | D69: 重庆市巴蜀常春藤学校（小学） | E69: 巴蜀常春藤（小学） | F69: 094 | G69: X094 | H69: 0
A70: 1069 | B70: 小学 | C70: 启诚巴蜀小学 | D70: 重庆市渝北区启诚巴蜀小学校 | E70: 启诚巴蜀小学 | F70: 095 | G70: X095 | H70: 0
A71: 1070 | B71: 小学 | C71: 哈罗礼德（小学） | D71: 重庆市渝北区哈罗礼德学校（小学） | E71: 哈罗礼德（小学） | F71: 096 | G71: X096 | H71: 0
A72: 1071 | B72: 小学 | C72: 云尚小学 | D72: 重庆市渝北区云尚小学校 | E72: 云尚小学 | F72: 097 | G72: X097 | H72: 0
A73: 1501 | B73: 初中 | C73: 高嘴学校（初中） | D73: 重庆市渝北区高嘴学校（初中） | E73: 高嘴中学 | F73: 104 | G73: C104 | H73: 99 | I73: C029
A74: 1502 | B74: 初中 | C74: 育仁中学（初中） | D74: 重庆市育仁中学校（初中） | E74: 育仁中学 | F74: 105 | G74: C105 | H74: 77 | I74: C018
A75: 1503 | B75: 初中 | C75: 华蓥中学（初中） | D75: 重庆市华蓥中学校（初中） | E75: 华蓥中学 | F75: 106 | G75: C106 | H75: 76 | I75: C016
A76: 1504 | B76: 初中 | C76: 实验中学 | D76: 重庆市渝北区实验中学校 | E76: 实验中学 | F76: 108 | G76: C108 | H76: 78 | I76: C006
A77: 1505 | B77: 初中 | C77: 锦华学校（初中） | D77: 重庆市渝北区锦华学校（初中） | E77: 锦华中学 | F77: 109 | G77: C109 | H77: 86 | I77: C014
A78: 1506 | B78: 初中 | C78: 渝汉中学 | D78: 重庆市渝北区渝汉初级中学校 | E78: 渝汉中学 | F78: 110 | G78: C110 | H78: 89 | I78: C019
A79: 1507 | B79: 初中 | C79: 渝石中学 | D79: 重庆市渝北区渝石初级中学校 | E79: 渝石中学 | F79: 111 | G79: C111 | H79: 91 | I79: C021
A80: 1508 | B80: 初中 | C80: 龙塔实验学校（初中） | D80: 重庆市渝北区龙塔实验学校（初中） | E80: 龙塔中学 | F80: 112 | G80: C112 | H80: 81 | I80: C009
A81: 1509 | B81: 初中 | C81: 黄炎培中学 | D81: 重庆市渝北区黄炎培初级中学校 | E81: 黄炎中学 | F81: 116 | G81: C116 | H81: 82 | I81: C010
A82: 1510 | B82: 初中 | C82: 悦来中学 | D82: 重庆市渝北区悦来初级中学校 | E82: 悦来中学 | F82: 117 | G82: C117 | H82: 84 | I82: C012
A83: 1511 | B83: 初中 | C83: 实验二中 | D83: 重庆市渝北区第二实验中学校 | E83: 实验二中 | F83: 118 | G83: C118 | H83: 79 | I83: C007
A84: 1512 | B84: 初中 | C84: 仁睦中学 | D84: 重庆市渝北区仁睦初级中学校 | E84: 仁睦中学 | F84: 119 | G84: C119 | H84: 88 | I84: C015
A85: 1513 | B85: 初中 | C85: 石鞋学校（初中） | D85: 重庆市渝北区石鞋学校（初中） | E85: 石鞋中学 | F85: 121 | G85: C121 | H85: 113 | I85: C033
A86: 1514 | B86: 初中 | C86: 松树桥中学（初中） | D86: 重庆市松树桥中学校（初中） | E86: 松树桥中学 | F86: 123 | G86: C123 | H86: 73 | I86: C003
A87: 1515 | B87: 初中 | C87: 暨华中学（初中） | D87: 重庆市暨华中学校（初中） | E87: 暨华中学 | F87: 124 | G87: C124 | H87: 72 | I87: C002
A88: 1516 | B88: 初中 | C88: 南华中学（初中） | D88: 重庆市南华中学校（初中） | E88: 南华中学 | F88: 125 | G88: C125 | H88: 74 | I88: C004
A89: 1517 | B89: 初中 | C89: 渝北中学（初中） | D89: 重庆市渝北中学校（初中） | E89: 渝北中学 | F89: 126 | G89: C126 | H89: 71 | I89: C001
A90: 1518 | B90: 初中 | C90: 两江中学（初中） | D90: 重庆市两江中学校（初中） | E90: 两江中学 | F90: 128 | G90: C128 | H90: 75 | I90: C005
A91: 1519 | B91: 初中 | C91: 大湾中学 | D91: 重庆市渝北区大湾初级中学校 | E91: 大湾中学 | F91: 129 | G91: C129 | H91: 98 | I91: C028
A92: 1520 | B92: 初中 | C92: 玉峰山中学 | D92: 重庆市渝北区玉峰山初级中学校 | E92: 玉峰山中学 | F92: 134 | G92: C134 | H92: 95 | I92: C025
A93: 1521 | B93: 初中 | C93: 王家学校（初中） | D93: 重庆市渝北区王家学校（初中） | E93: 王家学校（初中） | F93: 135 | G93: C135 | H93: 85 | I93: C013
A94: 1522 | B94: 初中 | C94: 古路学校（初中） | D94: 重庆市渝北区古路学校（初中） | E94: 古路中学 | F94: 137 | G94: C137 | H94: 96 | I94: C026
A95: 1523 | B95: 初中 | C95: 洛碛中学 | D95: 重庆市渝北区洛碛初级中学校 | E95: 洛碛中学 | F95: 143 | G95: C143 | H95: 92 | I95: C022
A96: 1524 | B96: 初中 | C96: 御临中学 | D96: 重庆市渝北区御临初级中学校 | E96: 御临中学 | F96: 148 | G96: C148 | H96: 94 | I96: C024
A97: 1525 | B97: 初中 | C97: 统景中学 | D97: 重庆市渝北区统景初级中学校 | E97: 统景中学 | F97: 149 | G97: C149 | H97: 93 | I97: C023
A98: 1526 | B98: 初中 | C98: 大盛学校（初中） | D98: 重庆市渝北区大盛学校（初中） | E98: 大盛中学 | F98: 152 | G98: C152 | H98: 100 | I98: C030
A99: 1527 | B99: 初中 | C99: 悦港中学 | D99: 重庆市渝北区悦港初级中学校 | E99: 悦港中学 | F99: 155 | G99: C155 | H99: 121 | I99: C035
A100: 1528 | B100: 初中 | C100: 皇冠中学 | D100: 重庆市渝北区皇冠中学校 | E100: 皇冠中学 | F100: 167 | G100: C167 | H100: 144 | I100: C043
A101: 1529 | B101: 初中 | C101: 南开两江（初中） | D101: 重庆市渝北区南开两江中学校（初中） | E101: 南开两江（初中） | F101: 172 | G101: C172 | H101: 138 | I101: C037
A102: 1530 | B102: 初中 | C102: 一中寄宿中学 | D102: 重庆市渝北区一中寄宿学校 | E102: 一中寄宿中学 | F102: 174 | G102: C174 | H102: 139 | I102: C038
A103: 1531 | B103: 初中 | C103: 巴蜀常春藤（初中） | D103: 重庆市巴蜀常春藤学校（初中） | E103: 巴蜀常春藤 | F103: 175 | G103: C175 | H103: 140 | I103: C039
A104: 1532 | B104: 初中 | C104: 空港实验中学 | D104: 重庆市渝北区空港实验中学校 | E104: 空港实验中学 | F104: 176 | G104: C176 | H104: 141 | I104: C040
A105: 1533 | B105: 初中 | C105: 八中渝北龙兴中学 | D105: 重庆市八中渝北龙兴中学校 | E105: 八中渝北龙兴中学 | F105: 187 | G105: C187 | H105: 142 | I105: C041
A106: 1534 | B106: 初中 | C106: 重庆八中（初中） | D106: 重庆市第八中学校（初中） | E106: 重庆八中 | F106: 188 | G106: C188 | H106: 143 | I106: C042
A107: 1535 | B107: 初中 | C107: 数据谷中学 | D107: 重庆市渝北区数据谷中学校 | E107: 数据谷中学 | F107: 189 | G107: C189 | H107: 128 | I107: C036
A108: 1536 | B108: 初中 | C108: 哈罗礼德（初中） | D108: 重庆市渝北区哈罗礼德学校（初中） | E108: 哈罗礼德（初中） | F108: 190 | G108: C190 | H108: 0
A109: 1537 | B109: 初中 | C109: 腾芳中学 | D109: 重庆市渝北区腾芳学校（初中） | E109: 腾芳中学 | F109: 191 | G109: C191 | H109: 0
A110: 1801 | B110: 高中 | C110: 渝北中学（高中） | D110: 重庆市渝北中学校（高中） | E110: 渝北中学 | F110: 1 | G110: G01 | H110: 103 | I110: G001
A111: 1802 | B111: 高中 | C111: 暨华中学（高中） | D111: 重庆市暨华中学校（高中） | E111: 暨华中学 | F111: 2 | G111: G02 | H111: 104 | I111: G002
A112: 1803 | B112: 高中 | C112: 松树桥中学（高中） | D112: 重庆市松树桥中学校（高中） | E112: 松树桥中学 | F112: 3 | G112: G03 | H112: 105 | I112: G003
A113: 1804 | B113: 高中 | C113: 南华中学（高中） | D113: 重庆市南华中学校（高中） | E113: 南华中学 | F113: 4 | G113: G04 | H113: 106 | I113: G004
A114: 1805 | B114: 高中 | C114: 两江中学（高中） | D114: 重庆市两江中学校（高中） | E114: 两江中学 | F114: 5 | G114: G05 | H114: 107 | I114: G005
A115: 1806 | B115: 高中 | C115: 华蓥中学（高中） | D115: 重庆市华蓥中学校（高中） | E115: 华蓥中学 | F115: 6 | G115: G06 | H115: 108 | I115: G006
A116: 1807 | B116: 高中 | C116: 育仁中学（高中） | D116: 重庆市育仁中学校（高中） | E116: 育仁中学 | F116: 7 | G116: G07 | H116: 109 | I116: G007
A117: 1808 | B117: 高中 | C117: 重庆八中（高中） | D117: 重庆市第八中学校（高中） | E117: 重庆八中 | F117: 8 | G117: G08 | H117: 0
A118: 1809 | B118: 高中 | C118: 巴蜀常春藤（高中） | D118: 重庆市巴蜀常春藤学校（高中） | E118: 巴蜀常春藤 | F118: 9 | G118: G09 | H118: 0
A119: 1810 | B119: 高中 | C119: 南开两江（高中） | D119: 重庆市渝北区南开两江中学校（高中） | E119: 两江南开 | F119: 10 | G119: G10 | H119: 0

Sheet Sheet3
A1: 高嘴学校 | B1: 1501 | C1: 初中 | D1: 高嘴学校（初中） | E1: 重庆市渝北区高嘴学校（初中） | F1: 104 | G1: C104 | H1: 99 | I1: C029
A2: 重庆市育仁中学校 | B2: 1502 | C2: 初中 | D2: 育仁中学（初中） | E2: 重庆市育仁中学校（初中） | F2: 105 | G2: C105 | H2: 77 | I2: C018
A3: 重庆市华蓥中学校 | B3: 1503 | C3: 初中 | D3: 华蓥中学（初中） | E3: 重庆市华蓥中学校（初中） | F3: 106 | G3: C106 | H3: 76 | I3: C016
A4: 重庆市渝北区实验中学校 | B4: 1504 | C4: 初中 | D4: 实验中学 | E4: 重庆市渝北区实验中学校 | F4: 108 | G4: C108 | H4: 78 | I4: C006
A5: 锦华学校初中 | B5: 1505 | C5: 初中 | D5: 锦华学校（初中） | E5: 重庆市渝北区锦华学校（初中） | F5: 109 | G5: C109 | H5: 86 | I5: C014
A6: 渝汉中学 | B6: 1506 | C6: 初中 | D6: 渝汉中学 | E6: 重庆市渝北区渝汉初级中学校 | F6: 110 | G6: C110 | H6: 89 | I6: C019
A7: 重庆市渝北区渝石初级中学校 | B7: 1507 | C7: 初中 | D7: 渝石中学 | E7: 重庆市渝北区渝石初级中学校 | F7: 111 | G7: C111 | H7: 91 | I7: C021
A8: 龙塔学校 | B8: 1508 | C8: 初中 | D8: 龙塔实验学校（初中） | E8: 重庆市渝北区龙塔实验学校（初中） | F8: 112 | G8: C112 | H8: 81 | I8: C009
A9: 黄炎中学 | B9: 1509 | C9: 初中 | D9: 黄炎培中学 | E9: 重庆市渝北区黄炎培初级中学校 | F9: 116 | G9: C116 | H9: 82 | I9: C010
A10: 悦来中学 | B10: 1510 | C10: 初中 | D10: 悦来中学 | E10: 重庆市渝北区悦来初级中学校 | F10: 117 | G10: C117 | H10: 84 | I10: C012
A11: 实验二中 | B11: 1511 | C11: 初中 | D11: 实验二中 | E11: 重庆市渝北区第二实验中学校 | F11: 118 | G11: C118 | H11: 79 | I11: C007
A12: 仁睦中学 | B12: 1512 | C12: 初中 | D12: 仁睦中学 | E12: 重庆市渝北区仁睦初级中学校 | F12: 119 | G12: C119 | H12: 88 | I12: C015
A13: 重庆市渝北区石鞋学校 | B13: 1513 | C13: 初中 | D13: 石鞋学校（初中） | E13: 重庆市渝北区石鞋学校（初中） | F13: 121 | G13: C121 | H13: 113 | I13: C033
A14: 重庆市松树桥中学校 | B14: 1514 | C14: 初中 | D14: 松树桥中学（初中） | E14: 重庆市松树桥中学校（初中） | F14: 123 | G14: C123 | H14: 73 | I14: C003
A15: 暨华中学高中 | B15: 1515 | C15: 初中 | D15: 暨华中学（初中） | E15: 重庆市暨华中学校（初中） | F15: 124 | G15: C124 | H15: 72 | I15: C002
A16: 重庆市南华中学校 | B16: 1516 | C16: 初中 | D16: 南华中学（初中） | E16: 重庆市南华中学校（初中） | F16: 125 | G16: C125 | H16: 74 | I16: C004
A17: 重庆市渝北中学校 | B17: 1517 | C17: 初中 | D17: 渝北中学（初中） | E17: 重庆市渝北中学校（初中） | F17: 126 | G17: C126 | H17: 71 | I17: C001
A18: 两江中学 | B18: 1518 | C18: 初中 | D18: 两江中学（初中） | E18: 重庆市两江中学校（初中） | F18: 128 | G18: C128 | H18: 75 | I18: C005
A19: 大湾中学 | B19: 1519 | C19: 初中 | D19: 大湾中学 | E19: 重庆市渝北区大湾初级中学校 | F19: 129 | G19: C129 | H19: 98 | I19: C028
A20: 玉峰山中学 | B20: 1520 | C20: 初中 | D20: 玉峰山中学 | E20: 重庆市渝北区玉峰山初级中学校 | F20: 134 | G20: C134 | H20: 95 | I20: C025
A21: 王家学校 | B21: 1521 | C21: 初中 | D21: 王家学校（初中） | E21: 重庆市渝北区王家学校（初中） | F21: 135 | G21: C135 | H21: 85 | I21: C013
A22: 重庆市渝北区古路学校 | B22: 1522 | C22: 初中 | D22: 古路学校（初中） | E22: 重庆市渝北区古路学校（初中） | F22: 137 | G22: C137 | H22: 96 | I22: C026
A23: 洛碛中学 | B23: 1523 | C23: 初中 | D23: 洛碛中学 | E23: 重庆市渝北区洛碛初级中学校 | F23: 143 | G23: C143 | H23: 92 | I23: C022
A24: 重庆市渝北区御临初级中学校 | B24: 1524 | C24: 初中 | D24: 御临中学 | E24: 重庆市渝北区御临初级中学校 | F24: 148 | G24: C148 | H24: 94 | I24: C024
A25: 统景中学 | B25: 1525 | C25: 初中 | D25: 统景中学 | E25: 重庆市渝北区统景初级中学校 | F25: 149 | G25: C149 | H25: 93 | I25: C023
A26: 大盛中学 | B26: 1526 | C26: 初中 | D26: 大盛学校（初中） | E26: 重庆市渝北区大盛学校（初中） | F26: 152 | G26: C152 | H26: 100 | I26: C030
A27: 悦港中学初中 | B27: 1527 | C27: 初中 | D27: 悦港中学 | E27: 重庆市渝北区悦港初级中学校 | F27: 155 | G27: C155 | H27: 121 | I27: C035
A28: 皇冠中学 | B28: 1528 | C28: 初中 | D28: 皇冠中学 | E28: 重庆市渝北区皇冠中学校 | F28: 167 | G28: C167 | H28: 144 | I28: C043
A29: 南开两江（初中） | B29: 1529 | C29: 初中 | D29: 南开两江（初中） | E29: 重庆市渝北区南开两江中学校（初中） | F29: 172 | G29: C172 | H29: 138 | I29: C037
A30: 一中寄宿中学 | B30: 1530 | C30: 初中 | D30: 一中寄宿中学 | E30: 重庆市渝北区一中寄宿学校 | F30: 174 | G30: C174 | H30: 139 | I30: C038
A31: 巴蜀常春藤 | B31: 1531 | C31: 初中 | D31: 巴蜀常春藤（初中） | E31: 重庆市巴蜀常春藤学校（初中） | F31: 175 | G31: C175 | H31: 140 | I31: C039
A32: 重庆市渝北区空港实验中学校 | B32: 1532 | C32: 初中 | D32: 空港实验中学 | E32: 重庆市渝北区空港实验中学校 | F32: 176 | G32: C176 | H32: 141 | I32: C040
A33: 八中渝北龙兴中学 | B33: 1533 | C33: 初中 | D33: 八中渝北龙兴中学 | E33: 重庆市八中渝北龙兴中学校 | F33: 187 | G33: C187 | H33: 142 | I33: C041
A34: 重庆八中 | B34: 1534 | C34: 初中 | D34: 重庆八中（初中） | E34: 重庆市第八中学校（初中） | F34: 188 | G34: C188 | H34: 143 | I34: C042
A35: 数据谷中学 | B35: 1535 | C35: 初中 | D35: 数据谷中学 | E35: 重庆市渝北区数据谷中学校 | F35: 189 | G35: C189 | H35: 128 | I35: C036
A36: 哈罗礼德（初中） | B36: 1536 | C36: 初中 | D36: 哈罗礼德（初中） | E36: 重庆市渝北区哈罗礼德学校（初中） | F36: 190 | G36: C190 | H36: 0
A37: 腾芳中学 | B37: 1537 | C37: 初中 | D37: 腾芳中学 | E37: 重庆市渝北区腾芳学校（初中） | F37: 191 | G37: C191 | H37: 0

Sheet Sheet1
A1: 重庆市渝北区宝圣湖小学校 | B1: 1001 | C1: 小学 | D1: 宝圣湖小学 | E1: 重庆市渝北区宝圣湖小学校 | F1: 宝圣湖小学 | G1: 001 | H1: X001 | I1: 16 | J1: X016
A2: 重庆市渝北区东原香山实验小学校 | B2: 1002 | C2: 小学 | D2: 东原香山实验小学 | E2: 重庆市渝北东原香山实验小学校 | F2: 东原小学 | G2: 002 | H2: X002 | I2: 112 | J2: X028
A3: 重庆市渝北区金鹏实验小学校 | B3: 1003 | C3: 小学 | D3: 金鹏小学 | E3: 重庆市渝北区金鹏小学校 | F3: 金鹏小学 | G3: 003 | H3: X003 | I3: 110 | J3: X026
A4: 重庆市渝北区高嘴学校 | B4: 1004 | C4: 小学 | D4: 高嘴学校（小学） | E4: 重庆市渝北区高嘴学校（小学） | F4: 高嘴小学 | G4: 004 | H4: X004 | I4: 56 | J4: X130
A5: 重庆市渝北区回兴小学校 | B5: 1005 | C5: 小学 | D5: 回兴小学 | E5: 重庆市渝北区回兴中心小学校 | F5: 回兴小学 | G5: 005 | H5: X005 | I5: 15 | J5: X015
A6: 重庆市渝北区南方玫瑰城实验小学校 | B6: 1006 | C6: 小学 | D6: 南方玫瑰城实验小学 | E6: 重庆市渝北区南方玫瑰城实验小学校 | F6: 玫瑰小学 | G6: 006 | H6: X006 | I6: 23 | J6: X023
A7: 重庆市渝北区第三实验小学校 | B7: 1007 | C7: 小学 | D7: 实验三小 | E7: 重庆市渝北区第三实验小学校 | F7: 实验三小 | G7: 007 | H7: X007 | I7: 8 | J7: X008
A8: 重庆市渝北区双湖小学校 | B8: 1008 | C8: 小学 | D8: 双湖小学 | E8: 重庆市渝北区双湖小学校 | F8: 双湖小学 | G8: 008 | H8: X008 | I8: 10 | J8: X010
A9: 重庆市渝北区锦华学校 | B9: 1009 | C9: 小学 | D9: 锦华学校（小学） | E9: 重庆市渝北区锦华学校（小学） | F9: 锦华学校 | G9: 009 | H9: X009 | I9: 119 | J9: X036
A10: 重庆市渝北区旭辉小学校 | B10: 1010 | C10: 小学 | D10: 旭辉小学 | E10: 重庆市渝北区旭辉小学校 | F10: 旭辉小学 | G10: 010 | H10: X010 | I10: 118 | J10: X034
A11: 重庆市渝北区龙塔实验学校 | B11: 1011 | C11: 小学 | D11: 龙塔实验学校（小学） | E11: 重庆市渝北区龙塔实验学校（小学） | F11: 龙塔实验 | G11: 012 | H11: X012 | I11: 13 | J11: X013
A12: 重庆市渝北区龙头寺小学校 | B12: 1012 | C12: 小学 | D12: 龙头寺小学 | E12: 重庆市渝北区龙头寺小学校 | F12: 龙头寺小学 | G12: 013 | H12: X013 | I12: 129 | J12: X149
A13: 重庆市渝北区鲁能巴蜀小学校 | B13: 1013 | C13: 小学 | D13: 鲁能巴蜀小学 | E13: 重庆市渝北区鲁能巴蜀小学校 | F13: 鲁能巴蜀小学 | G13: 014 | H13: X014 | I13: 137 | J13: X157
A14: 重庆市渝北区龙溪小学校 | B14: 1014 | C14: 小学 | D14: 龙溪小学 | E14: 重庆市渝北区龙溪小学校 | F14: 龙溪小学 | G14: 015 | H14: X015 | I14: 5 | J14: X005
A15: 重庆市渝北区新牌坊小学校 | B15: 1015 | C15: 小学 | D15: 新牌坊小学 | E15: 重庆市渝北区新牌坊小学校 | F15: 牌坊小学 | G15: 016 | H15: X016 | I15: 9 | J15: X009
A16: 重庆市渝北区长安锦绣实验小学校 | B16: 1016 | C16: 小学 | D16: 长安锦绣实验小学 | E16: 重庆市渝北区长安锦绣实验小学校 | F16: 长安锦绣 | G16: 017 | H16: X017 | I16: 24 | J16: X024
A17: 重庆市渝北区东和春天实验学校 | B17: 1017 | C17: 小学 | D17: 东和春天实验学校 | E17: 重庆市渝北区东和春天实验学校 | F17: 东和春天 | G17: 018 | H17: X018 | I17: 7 | J17: X007
A18: 重庆市渝北区花园小学校 | B18: 1018 | C18: 小学 | D18: 花园小学 | E18: 重庆市渝北区花园小学校 | F18: 花园小学 | G18: 019 | H18: X019 | I18: 12 | J18: X012
A19: 重庆市渝北区龙山小学校 | B19: 1019 | C19: 小学 | D19: 龙山小学 | E19: 重庆市渝北区龙山小学校 | F19: 龙山小学 | G19: 020 | H19: X020 | I19: 25 | J19: X025
A20: 渝北区石鞋小学校 | B20: 1020 | C20: 小学 | D20: 石鞋学校（小学） | E20: 重庆市渝北区石鞋学校（小学） | F20: 石鞋小学 | G20: 021 | H20: X021 | I20: 41 | J20: X115
A21: 重庆市渝北区渝开学校 | B21: 1021 | C21: 小学 | D21: 渝开学校（小学） | E21: 重庆市渝北区渝开学校（小学） | F21: 渝开学校 | G21: 022 | H21: X022 | I21: 17 | J21: X017
A22: 重庆市渝北区天一新城小学校 | B22: 1022 | C22: 小学 | D22: 天一新城小学 | E22: 重庆市渝北区天一新城小学校 | F22: 天一小学 | G22: 023 | H22: X023 | I22: 18 | J22: X018
A23: 重庆市渝北区仁睦完全小学校 | B23: 1023 | C23: 小学 | D23: 仁睦完小 | E23: 重庆市渝北区仁睦完全小学校 | F23: 仁睦完小 | G23: 025 | H23: X025 | I23: 22 | J23: X022
A24: 重庆市渝北区长安锦尚小学校 | B24: 1024 | C24: 小学 | D24: 长安锦尚小学 | E24: 重庆市渝北区长安锦尚小学校 | F24: 长安锦尚 | G24: 026 | H24: X026 | I24: 124 | J24: X035
A25: 重庆市渝北区环雅小学校 | B25: 1025 | C25: 小学 | D25: 环雅小学 | E25: 重庆市渝北区环雅小学校 | F25: 环雅小学 | G25: 027 | H25: X027 | I25: 125 | J25: X146
A26: 重庆市渝北区观月小学校 | B26: 1026 | C26: 小学 | D26: 观月小学 | E26: 重庆市渝北区观月小学校 | F26: 观月小学 | G26: 028 | H26: X028 | I26: 122 | J26: X145
A27: 重庆市渝北区空港实验小学校 | B27: 1027 | C27: 小学 | D27: 空港实验小学 | E27: 重庆市渝北区空港实验小学校 | F27: 空港小学 | G27: 029 | H27: X029 | I27: 2 | J27: X002
A28: 重庆市渝北区两江小学校 | B28: 1028 | C28: 小学 | D28: 两江小学 | E28: 重庆市渝北区两江小学校 | F28: 两江小学 | G28: 030 | H28: X030 | I28: 111 | J28: X027
A29: 重庆市渝北区汉渝路小学校 | B29: 1029 | C29: 小学 | D29: 汉渝路小学 | E29: 重庆市渝北区汉渝路小学校 | F29: 汉渝小学 | G29: 031 | H29: X031 | I29: 3 | J29: X003
A30: 渝北区金港小学 | B30: 1030 | C30: 小学 | D30: 金港国际小学 | E30: 重庆市渝北金港国际实验小学校 | F30: 金港小学 | G30: 032 | H30: X032 | I30: 6 | J30: X006
A31: 渝北实验小学校 | B31: 1031 | C31: 小学 | D31: 渝北实验小学 | E31: 重庆市渝北实验小学校 | F31: 实验小学 | G31: 033 | H31: X033 | I31: 1 | J31: X001
A32: 重庆市渝北区笃信实验学校 | B32: 1032 | C32: 小学 | D32: 笃信实验学校 | E32: 重庆市渝北区笃信实验学校 | F32: 笃信学校 | G32: 034 | H32: X034 | I32: 20 | J32: X020
A33: 重庆市渝北区王家学校 | B33: 1033 | C33: 小学 | D33: 王家学校（小学） | E33: 重庆市渝北区王家学校（小学） | F33: 王家学校（小学） | G33: 035 | H33: X035 | I33: 26 | J33: X029
A34: 渝北区古路中心小学校 | B34: 1034 | C34: 小学 | D34: 古路学校（小学） | E34: 重庆市渝北区古路学校（小学） | F34: 古路小学 | G34: 037 | H34: X037 | I34: 38 | J34: X112
A35: 重庆市渝北区鹿山小学校 | B35: 1035 | C35: 小学 | D35: 鹿山小学 | E35: 重庆市渝北区鹿山小学校 | F35: 鹿山小学 | G35: 038 | H35: X038 | I35: 11 | J35: X011
A36: 重庆市渝北区五星路小学校 | B36: 1036 | C36: 小学 | D36: 五星路小学 | E36: 重庆市渝北区五星路小学校 | F36: 五星小学 | G36: 039 | H36: X039 | I36: 4 | J36: X004
A37: 重庆市渝北巴蜀小学 | B37: 1037 | C37: 小学 | D37: 渝北巴蜀小学 | E37: 重庆市渝北巴蜀小学校 | F37: 巴蜀 | G37: 040 | H37: X040 | I37: 114 | J37: X030
A38: 重庆市渝北区空港新城人和街小学校 | B38: 1038 | C38: 小学 | D38: 空港新城人和街小学 | E38: 重庆市渝北区空港新城人和街小学校 | F38: 空港人和街 | G38: 041 | H38: X041 | I38: 116 | J38: X032
A39: 重庆市渝北区空港新城小学校 | B39: 1039 | C39: 小学 | D39: 空港新城小学 | E39: 重庆市渝北区空港新城小学校 | F39: 空港新城 | G39: 042 | H39: X042 | I39: 21 | J39: X021
A40: 重庆市渝北区盛景天下小学校 | B40: 1040 | C40: 小学 | D40: 盛景天下小学 | E40: 重庆市渝北区盛景天下小学校 | F40: 盛景小学 | G40: 043 | H40: X043 | I40: 115 | J40: X031
A41: 重庆市渝北区中央公园小学校 | B41: 1041 | C41: 小学 | D41: 中央公园小学 | E41: 重庆市渝北区中央公园小学校 | F41: 中央公园小学 | G41: 044 | H41: X044 | I41: 117 | J41: X033
A42: 重庆市渝北区腾芳小学校 | B42: 1042 | C42: 小学 | D42: 腾芳小学 | E42: 重庆市渝北区腾芳小学校 | F42: 腾芳小学 | G42: 045 | H42: X045 | I42: 126 | J42: X147
A43: 重庆市渝北区数据谷小学 | B43: 1043 | C43: 小学 | D43: 数据谷小学 | E43: 重庆市渝北区数据谷小学校 | F43: 数据谷小学 | G43: 046 | H43: X046 | I43: 127 | J43: X148
A44: 重庆市渝北区空港佳园小学校 | B44: 1044 | C44: 小学 | D44: 空港佳园小学 | E44: 重庆市渝北区空港佳园小学校 | F44: 空港佳园小学 | G44: 047 | H44: X047 | I44: 123 | J44: X037
A45: 重庆市渝北区同茂小学校 | B45: 1045 | C45: 小学 | D45: 同茂小学 | E45: 重庆市渝北区同茂小学校 | F45: 同茂小学 | G45: 048 | H45: X048 | I45: 130 | J45: X150
A46: 重庆市渝北区和合家园小学校 | B46: 1046 | C46: 小学 | D46: 和合家园小学 | E46: 重庆市渝北区和合家园小学校 | F46: 和合小学 | G46: 050 | H46: X050 | I46: 43 | J46: X117
A47: 重庆市渝北区龙兴中心小学校 | B47: 1047 | C47: 小学 | D47: 龙兴小学 | E47: 重庆市渝北区龙兴中心小学校 | F47: 龙兴小学 | G47: 051 | H47: X051 | I47: 35 | J47: X109
A48: 渝北区大盛中心小学校 | B48: 1048 | C48: 小学 | D48: 大盛学校（小学） | E48: 重庆市渝北区大盛学校（小学） | F48: 大盛小学 | G48: 052 | H48: X052 | I48: 36 | J48: X110
A49: 重庆市渝北区天堡寨小学校 | B49: 1049 | C49: 小学 | D49: 天堡寨小学 | E49: 重庆市渝北区天堡寨小学校 | F49: 天堡小学 | G49: 053 | H49: X053 | I49: 57 | J49: X132
A50: 重庆市渝北区两江人民小学 | B50: 1050 | C50: 小学 | D50: 两江人民小学 | E50: 重庆市渝北区两江人民小学校 | F50: 两江人民小学 | G50: 054 | H50: X054 | I50: 131 | J50: X151
A51: 重庆市渝北区龙兴实验小学校 | B51: 1051 | C51: 小学 | D51: 龙兴实验小学 | E51: 重庆市渝北区龙兴实验小学校 | F51: 龙兴实验小学 | G51: 055 | H51: X055 | I51: 132 | J51: X152
A52: 重庆市渝北区茨竹中心小学校 | B52: 1052 | C52: 小学 | D52: 茨竹小学 | E52: 重庆市渝北区茨竹中心小学校 | F52: 茨竹小学 | G52: 058 | H52: X058 | I52: 28 | J52: X102
A53: 重庆市渝北区华秦小学校 | B53: 1053 | C53: 小学 | D53: 华秦小学 | E53: 重庆市渝北区华秦小学校 | F53: 华秦小学 | G53: 059 | H53: X059 | I53: 44 | J53: X118
A54: 重庆市渝北区华蓥山学校 | B54: 1054 | C54: 小学 | D54: 华蓥山学校（小学） | E54: 重庆市渝北区华蓥山学校（小学） | F54: 华山学校 | G54: 060 | H54: X060 | I54: 30 | J54: X104
A55: 重庆市渝北区大湾镇明德小学 | B55: 1055 | C55: 小学 | D55: 大湾镇明德小学 | E55: 重庆市渝北区大湾镇明德小学校 | F55: 大湾小学 | G55: 062 | H55: X062 | I55: 37 | J55: X111
A56: 重庆市渝北区洛碛中心小学校 | B56: 1056 | C56: 小学 | D56: 洛碛小学 | E56: 重庆市渝北区洛碛中心小学校 | F56: 洛碛小学 | G56: 063 | H56: X063 | I56: 29 | J56: X103
A57: 重庆市渝北区立人小学校 | B57: 1057 | C57: 小学 | D57: 立人小学 | E57: 重庆市渝北区立人小学校 | F57: 立人小学 | G57: 064 | H57: X064 | I57: 19 | J57: X019
A58: 重庆市渝北区木耳中心小学校 | B58: 1058 | C58: 小学 | D58: 木耳小学 | E58: 重庆市渝北区木耳中心小学校 | F58: 木耳小学 | G58: 065 | H58: X065 | I58: 31 | J58: X105
A59: 重庆市渝北区石船中心小学校 | B59: 1059 | C59: 小学 | D59: 石船小学 | E59: 重庆市渝北区石船中心小学校 | F59: 石船小学 | G59: 066 | H59: X066 | I59: 33 | J59: X107
A60: 重庆市渝北区统景中心小学校 | B60: 1060 | C60: 小学 | D60: 统景小学 | E60: 重庆市渝北区统景中心小学校 | F60: 统景小学 | G60: 068 | H60: X068 | I60: 34 | J60: X108
A61: 重庆市渝北区兴隆中心小学校 | B61: 1061 | C61: 小学 | D61: 兴隆小学 | E61: 重庆市渝北区兴隆中心小学校 | F61: 兴隆小学 | G61: 069 | H61: X069 | I61: 27 | J61: X101
A62: 重庆市渝北区玉峰山小学校 | B62: 1062 | C62: 小学 | D62: 玉峰山小学 | E62: 重庆市渝北区玉峰山中心小学校 | F62: 玉峰小学 | G62: 071 | H62: X071 | I62: 32 | J62: X106
A63: 重庆市渝北区悦来中心小学校 | B63: 1063 | C63: 小学 | D63: 悦来小学 | E63: 重庆市渝北区悦来中心小学校 | F63: 悦来小学 | G63: 072 | H63: X072 | I63: 14 | J63: X014
A64: 重庆市渝北区首地人和街小学校 | B64: 1064 | C64: 小学 | D64: 首地人和街小学 | E64: 重庆市渝北区首地人和街小学校 | F64: 首地人和街小学 | G64: 074 | H64: X074 | I64: 133 | J64: X153
A65: 重庆市渝北区悦城小学校 | B65: 1065 | C65: 小学 | D65: 悦城小学 | E65: 重庆市渝北区悦城小学校 | F65: 悦城小学 | G65: 078 | H65: X078 | I65: 134 | J65: X154
A66: 重庆市渝北区金石小学校 | B66: 1066 | C66: 小学 | D66: 金石小学 | E66: 重庆市渝北区金石小学校 | F66: 金石小学 | G66: 092 | H66: X092 | I66: 135 | J66: X155
A67: 重庆市渝北区举人坝小学校 | B67: 1067 | C67: 小学 | D67: 举人坝小学 | E67: 重庆市渝北区举人坝小学校 | F67: 举人坝小学 | G67: 093 | H67: X093 | I67: 136 | J67: X156
A68: 重庆市巴蜀常春藤学校（小学） | B68: 1068 | C68: 小学 | D68: 巴蜀常春藤（小学） | E68: 重庆市巴蜀常春藤学校（小学） | F68: 巴蜀常春藤（小学） | G68: 094 | H68: X094 | I68: 0
A69: 重庆市渝北区启诚巴蜀小学校 | B69: 1069 | C69: 小学 | D69: 启诚巴蜀小学 | E69: 重庆市渝北区启诚巴蜀小学校 | F69: 启诚巴蜀小学 | G69: 095 | H69: X095 | I69: 0
A70: 重庆市渝北区哈罗礼德学校（小学） | B70: 1070 | C70: 小学 | D70: 哈罗礼德（小学） | E70: 重庆市渝北区哈罗礼德学校（小学） | F70: 哈罗礼德（小学） | G70: 096 | H70: X096 | I70: 0
A71: 重庆市渝北区云尚小学校 | B71: 1071 | C71: 小学 | D71: 云尚小学 | E71: 重庆市渝北区云尚小学校 | F71: 云尚小学 | G71: 097 | H71: X097 | I71: 0

Sheet Sheet2
B1: 1801 | C1: 高中 | D1: 渝北中学（高中） | E1: 重庆市渝北中学校（高中） | F1: 渝北中学 | G1: 1 | H1: G01 | I1: 103 | J1: G001
A2: 暨华中学高中 | B2: 1802 | C2: 高中 | D2: 暨华中学（高中） | E2: 重庆市暨华中学校（高中） | F2: 暨华中学 | G2: 2 | H2: G02 | I2: 104 | J2: G002
A3: 松树桥中学高中 | B3: 1803 | C3: 高中 | D3: 松树桥中学（高中） | E3: 重庆市松树桥中学校（高中） | F3: 松树桥中学 | G3: 3 | H3: G03 | I3: 105 | J3: G003
A4: 重庆市南华中学 | B4: 1804 | C4: 高中 | D4: 南华中学（高中） | E4: 重庆市南华中学校（高中） | F4: 南华中学 | G4: 4 | H4: G04 | I4: 106 | J4: G004
A5: 两江中学高中 | B5: 1805 | C5: 高中 | D5: 两江中学（高中） | E5: 重庆市两江中学校（高中） | F5: 两江中学 | G5: 5 | H5: G05 | I5: 107 | J5: G005
A6: 华蓥中学高中 | B6: 1806 | C6: 高中 | D6: 华蓥中学（高中） | E6: 重庆市华蓥中学校（高中） | F6: 华蓥中学 | G6: 6 | H6: G06 | I6: 108 | J6: G006
A7: 育仁中学高中 | B7: 1807 | C7: 高中 | D7: 育仁中学（高中） | E7: 重庆市育仁中学校（高中） | F7: 育仁中学 | G7: 7 | H7: G07 | I7: 109 | J7: G007
B8: 1808 | C8: 高中 | D8: 重庆八中（高中） | E8: 重庆市第八中学校（高中） | F8: 重庆八中 | G8: 8 | H8: G08 | I8: 0
B9: 1809 | C9: 高中 | D9: 巴蜀常春藤（高中） | E9: 重庆市巴蜀常春藤学校（高中） | F9: 巴蜀常春藤 | G9: 9 | H9: G09 | I9: 0
B10: 1810 | C10: 高中 | D10: 南开两江（高中） | E10: 重庆市渝北区南开两江中学校（高中） | F10: 两江南开 | G10: 10 | H10: G10 | I10: 0
